{"text_format":"3","workbook":"xlsx","n_sheets":1,"sheets":["Pricing Sheet"],"not_rendered":{"defined_names":2},"read":"whole","date_system":"1900"}

{"sheet":"Pricing Sheet","index":0,"n_rows":637,"n_cols":9,"rows_kept":637,"merged":[[0,1,0,8],[1,1,1,8],[2,1,2,8],[3,1,3,8],[4,1,4,8],[5,5,5,6],[5,7,5,8]]}
[null,"ITB XX-XXX - ATTACHMENT A - PRICING SHEET"]
[null,"Construction of Green Infrastructure Stormwater BMPs"]
[null,"Green Infrastructure Stormwater BMPs work shall consist generally of BMPs in the public right of way and assiciated infrastructure. The work may also include construction, re-construction, and maintenance of:  State and County streets, curbs & gutters, sidewalks, walkways, driveway aprons, sanitary sewer pipes and structures, water mains, storm sewer pipes and inlets, streetscapes, landscape planting, and related site work."]
[null,"PLEASE PROVIDE PRICES FOR ALL ITEMS LISTED"]
[null,"All Unit Prices on the Bid Form shall reflect and be inclusive of all costs, including but not limited to:  tasks, labor, supplies, tools, equipment, transportation, mobilization, clearing and grubbing, demolition, saw-cutting, material provisions and installations, disposals, incidentals, and all things necessary to perform the work as set forth in accordance with project plans and specifications and in compliance with all Arlington County, DEQ and VDOT Standards and Specifications."]
["MASTER ID#","ITEM#","LINE ITEM DESCRIPTION                                                                               (Use Arlington County Standards & Specs or VDOT Standards & Specs as noted. Absent Arlington County Standards & Specs, use VDOT Standards & Specs, unless otherwise noted).","TOTAL ESTIMATED ANNUAL QUANTITY \n(TEQ)","UNIT","UNIT PRICE \n(UP)\n",null,"TOTAL ESTIMATED PRICE \n\n  "]
[{"$nulls":5},"BASE BID WORK","RESTRICTED HOURS WORK","BASE BID WORK\n(UP) X 0.9 (TEQ)","RESTRICTED HOURS WORK\n(UP) X 0.1 (TEQ)"]
[null,"C1","GENERAL EARTH WORK"]
["02200-C1-00010","02202-C1-00020","Rock Excavation, only when not included in other pay items",5,"CY",null,null,{"$f":"(D9*F9)*0.9","v":0},{"$f":"(D9*G9)*0.1","v":0}]
["02202-C1-00020","01400-C1-00030","Test Pits (or Test Bores), Up to 6' Deep (with restoration)",20,"EA",null,null,{"$f":"(D10*F10)*0.9","v":0},{"$f":"(D10*G10)*0.1","v":0}]
["02200-C1-00300","01400-C1-00040","Test Pits (or Test Bores), Each VF Over 6' Deep (with restoration)",10,"VF",null,null,0,0]
["01400-C1-00030","02200-C1-00050","Select Material (VDOT Section 207 - Select Material)",200,"CY",null,null,0,0]
["01400-C1-00040","02200-C1-00060","Flowable BackFill (VDOT Special Provision S302G02-0610)",50,"CY",null,null,0,0]
["02200-C1-00050","02200-C1-00070","Geotextile Drainage Fabric In Place (VDOT Section 245.03.c)",250,"SY",null,null,0,0]
["02200-C1-00060","02200-C1-00071","Geotextile Stabilization Fabric In Place (VDOT Section 245.03.d.2)",100,"SY",null,null,0,0]
["02200-C1-00070","02200-C1-00100","Aggregate, VDOT #1 (Compacted in Place per VDOT standards & Specs)",5,"CY",null,null,0,0]
["02200-C1-00071","02200-C1-00110","Aggregate, VDOT #2  (Compacted in Place per VDOT standards & Specs)",5,"CY",null,null,0,0]
["02200-C1-00090","02200-C1-00120","Aggregate, VDOT #8  (Compacted in Place per VDOT standards & Specs)",20,"CY",null,null,0,0]
["02200-C1-00100","02200-C1-00130","Aggregate, VDOT #21-A  (Compacted in Place per VDOT standards & Specs)",80,"CY",null,null,0,0]
["02200-C1-00110","02200-C1-00140","Aggregate, VDOT #21-B  (Compacted in Place per VDOT standards & Specs)",5,"CY",null,null,0,0]
["02200-C1-00120","02200-C1-00150","Aggregate, Crusher Run VDOT #25 or approved equal  (Compacted in Place per VDOT standards & Specs)",5,"CY",null,null,0,0]
["02200-C1-00130","02200-C1-00160","Aggregate, VDOT #57  (Compacted in Place per VDOT standards & Specs)",50,"CY",null,null,0,0]
["02200-C1-00150","02210-C1-00170","Riprap, Dry Class I",5,"SY",null,null,0,0]
["02200-C1-00160","02210-C1-00180","Riprap, Dry Class II",5,"SY",null,null,0,0]
["02210-C1-00170","02210-C1-00190","Riprap, Mortared",5,"SY",null,null,0,0]
["02210-C1-00180","02210-C1-00200","Riprap, Grouted",5,"SY",null,null,0,0]
[]
[{"$nulls":5},"C1 SUBTOTAL",null,{"$f":"SUM(H9:H27)","v":0},{"$f":"SUM(I9:I27)","v":0}]
[null,"C2","CONCRETE WORK"]
["03100-C2-00010","03100-C2-00010","Rigid Concrete, Planing or Milling",5,"SY/IN",null,null,{"$f":"(D30*F30)*0.9","v":0},{"$f":"(D30*G30)*0.1","v":0}]
["02750-C2-00020","02750-C2-00020","Concrete Curb, Standard Header Curb C-3 (Arlington County Detail R-2.0), includes curb for aprons, ramps, etc.",50,"LF",null,null,{"$f":"(D31*F31)*0.9","v":0},{"$f":"(D31*G31)*0.1","v":0}]
["02750-C2-00030","02750-C2-00030","Concrete Curb, Mountable Curb at Traffic Circle (Arlington County Detail R-2.7)",50,"LF",null,null,0,0]
["02750-C2-00060","02750-C2-00040","Concrete Curb, Standard 6\" (VDOT CG-2), includes curb for aprons, ramps, etc.",5,"LF",null,null,0,0]
["02750-C2-00100","02750-C2-00050","Concrete Curb, Standard 4\" (VDOT CG-3), includes curb for aprons, ramps, etc.",5,"LF",null,null,0,0]
["02611-C2-00110","02750-C2-00055","Concrete Curb, Standard 3\" (VDOT CG-3 Modified), included curb for aprons, ramps, etc.",5,"LF",null,null,0,0]
["02611-C2-00111","02750-C2-00060","Concrete Curb & Gutter, Standard C-2 and C-2R (Arlington County Detail R-2.0), includes curb & gutter for aprons, ramps, etc.",400,"LF",null,null,0,0]
["02611-C2-00190","02750-C2-00075","Concrete Curb and Gutter for Transit Station, Standard C-4 (Arlington County Detail R-2.0)",5,"LF",null,null,0,0]
["02612-C2-00130","02750-C2-00070","Concrete Curb & Gutter, Combination 6\" (VDOT CG-6), includes curb & gutter for aprons, ramps, etc.",5,"LF",null,null,0,0]
["02612-C2-00140","02750-C2-00080","Concrete Curb & Gutter, Combination 4\" (VDOT CG-7), includes curb & gutter for aprons, ramps, etc.",5,"LF",null,null,0,0]
["02613-C2-00150","02750-C2-00085","Concrete Curb, C-5 Alternate Curb for Medians (Arlington County Detail R-2.0)",5,"LF",null,null,0,0]
["02613-C2-00160","02750-C2-00090","Standard Entrance Gutter (VDOT CG-9D).",5,"LF",null,null,0,0]
["02611-C2-00170","02750-C2-00100","Valley Gutter (Arlington County Detail R-2.9, including all materials as shown in detail)",100,"SY",null,null,0,0]
["02611-C2-00180","02611-C2-00110","Concrete Sidewalk, 4\" Thickness (Arlington County Detail R-2.0)",500,"SY",null,null,0,0]
["03100-C2-00210","02611-C2-00111","Concrete Sidewalk, 4\" Thickness with WWF (VDOT 223)",50,"SY",null,null,0,0]
["03100-C2-00220","02611-C2-00120","Concrete Sidewalk, 6\" Thickness",10,"SY",null,null,0,0]
["03100-C2-00230","02611-C2-00190","CG-12 Detectable Warning Surface - Truncated Domes",10,"SY",null,null,0,0]
["03100-C2-00240","02611-C2-00121","Concrete Sidewalk, 6\" Thickness with WWF (VDOT 223)",10,"SY",null,null,0,0]
["03100-C2-00250","02612-C2-00130","Concrete Pavers (Arlington County Detail R-2.1)",100,"SY",null,null,0,0]
["03100-C2-00260","02612-C2-00140","Concrete Pavers, Remove and Reset (Arlington County Detail R-2.1)",5,"SY",null,null,0,0]
["03100-C2-00270","02613-C2-00150","Concrete Paver Crosswalk (Arlington County Detail R-2.6, including all materials as shown in detail)",5,"SY",null,null,0,0]
["02650-C2-00280","02613-C2-00160","Concrete Paver Crosswalk, Remove and Reset (Arlington County Detail R-2.6, including all materials as shown in detail)",5,"SY",null,null,0,0]
[null,"02611-C2-00170","Concrete Driveway Entrance, 6\" Thick Residential (Arlington County Details R-2.4A, R-2.4B, R-2.4C, R-2.4D)",150,"SY",null,null,{"$f":"(D52*F52)*0.9","v":0},{"$f":"(D52*G52)*0.1","v":0}]
[null,"02611-C2-00180","Concrete Driveway Entrance, 9\" Thick Commercial (Arlington County Details R-2.4A, R-2.4B, R-2.4C, R-2.4D)",5,"SY",null,null,0,0]
[null,"03100-C2-00200","Concrete Steps Each (Arlington County Detail R-3.0, including all reinforcing bars as shown in detail)",5,"LF-W",null,null,0,0]
[null,"03100-C2-00210","Concrete Pier, Cradle, or Encasement (Arlington County Detail M-3.0)",10,"CY",null,null,0,0]
[null,"03100-C2-00220","Concrete Pier, Cradle, or Encasement (Arlington County Detail M-7.0)",10,"CY",null,null,0,0]
[null,"03100-C2-00230","Concrete and Formwork (VDOT Class A3), only when not included in other pay items",100,"CY",null,null,0,0]
[null,"03100-C2-00240","Concrete and Formwork (VDOT Class A4), only when not included in other pay items",5,"CY",null,null,0,0]
[null,"03100-C2-00250","Steel Reinforcement, Welded Wire Fabric (VDOT Section 406), only when not included in other pay items",10,"LB",null,null,0,0]
[null,"03100-C2-00260","Steel Reinforcement, Reinforcing Steel Bars #6 and smaller (VDOT Section 406), only when not included in other pay items",50,"LB",null,null,0,0]
[null,"03100-C2-00270","Steel Reinforcement, Reinforcing Steel Bars #7 up to #10 (VDOT Section 406), only when not included in other pay items",5,"LB",null,null,0,0]
[]
[{"$nulls":5},"C2 SUBTOTAL",null,{"$f":"SUM(H30:H62)","v":0},{"$f":"SUM(I30:I62)","v":0}]
[null,"C3","ASPHALT WORK"]
["02600-C3-00010","02600-C3-00010","Asphalt Concrete, Planing or Milling (1/2\" to 3\" Depth)",100,"SY",null,null,{"$f":"(D65*F65)*0.9","v":0},{"$f":"(D65*G65)*0.1","v":0}]
["02600-C3-00030","02600-C3-00020","Asphalt Concrete, Planing or Milling (In Excess of 3\" Depth)",5,"SY/IN",null,null,{"$f":"(D66*F66)*0.9","v":0},{"$f":"(D66*G66)*0.1","v":0}]
["02600-C3-00040","02600-C3-00030","Asphalt Concrete, Base Course (VDOT BM-25.0A)",50,"TON",null,null,0,0]
["02600-C3-00050","02600-C3-00160","Asphalt Concrete, Base Course (VDOT BM-25.D)",10,"TON",null,null,0,0]
["02600-C3-00060","02600-C3-00040","Asphalt Concrete, Intermediate Course (VDOT IM-19.0A)",5,"TON",null,null,0,0]
["02600-C3-00070","02600-C3-00050","Asphalt Concrete, Intermediate Course (VDOT IM-19.0D)",5,"TON",null,null,0,0]
["02600-C3-00120","02600-C3-00060","Asphalt Concrete, Base Course (VDOT BM-25.0D)",50,"TON",null,null,0,0]
["02600-C3-00130","02600-C3-00070","Asphalt Concrete, Surface Course (VDOT SM-9.5D)",5,"TON",null,null,0,0]
["03100-C3-00140","02600-C3-00080","Asphalt Concrete, Stamped - Imprinting Hot Mix Asphalt Concrete (per Supplemental Specification 02600)",5,"SF",null,null,0,0]
["03100-C3-00150","02600-C3-00090","Asphalt Concrete, Stamped - Heating Asphalt (per Supplemental Specification 02600)",5,"SF",null,null,0,0]
[null,"02600-C3-00100","Asphalt Concrete, Stamped - Provide and Install Streetbond Coating (per Supplemental Specification 02600)",5,"SF",null,null,{"$f":"(D75*F75)*0.9","v":0},{"$f":"(D75*G75)*0.1","v":0}]
[null,"02600-C3-00110","Asphalt Concrete, Stamped - Imprinted Asphalt Patching (per Supplemental Specification 02600)",5,"SF",null,null,0,0]
[null,"02600-C3-00120","Asphalt Header Curb, 6\"-8\" (VDOT SM-9.5A)",10,"LF",null,null,0,0]
[null,"02600-C3-00130","Cold-Mix Asphalt (latest VDOT Standards for Cold Mix Asphalt Type P-1, P-2, and P-3).",5,"TON",null,null,0,0]
[null,"03100-C3-00140","Remove 8\" to 10\" Reinforced Concrete Paving",5,"SY",null,null,0,0]
[null,"03100-C3-00150","Remove and Replace 8\" to 10\" Reinforced Concrete Paving VDOT Standards PR-3, PR-4, PR-5 and PR-6)",5,"SY",null,null,0,0]
[]
[{"$nulls":5},"C3 SUBTOTAL",null,{"$f":"SUM(H65:H81)","v":0},{"$f":"SUM(I65:I81)","v":0}]
[null,"C4","STORM SEWER UTILITY WORK"]
["02550-C4-00010","02505-C4-00450","Grate Inlet Driveway (Arlington County Detail D-1.12)",10,"LF",null,null,{"$f":"(D84*F84)*0.9","v":0},{"$f":"(D84*G84)*0.1","v":0}]
["02505-C4-00021","02500-C4-00620","15\" Pipe, RCP Class III, In Place Up to 6' Deep",50,"LF",null,null,{"$f":"(D85*F85)*0.9","v":0},{"$f":"(D85*G85)*0.1","v":0}]
["02550-C4-00030","02500-C4-00630","15\" Pipe, RCP Class III, In Place 6' to 8' Deep",10,"LF",null,null,0,0]
["02550-C4-00040","02500-C4-00640","18\" Pipe, RCP Class III, In Place Up to 6' Deep",50,"LF",null,null,0,0]
["02550-C4-00020","02500-C4-00650","18\" Pipe, RCP Class III, In Place 6' to 9' Deep",10,"LF",null,null,0,0]
["02505-C4-00031","02500-C4-00660","21\" Pipe, RCP Class III, In Place Up to 6' Deep",50,"LF",null,null,0,0]
["02505-C4-00041","02500-C4-00670","21\" Pipe, RCP Class III, In Place 6' to 10' Deep",10,"LF",null,null,0,0]
["02550-C4-00080","02500-C4-00680","24\" Pipe, RCP Class III, In Place Up to 6' Deep",50,"LF",null,null,0,0]
["02550-C4-00090","02500-C4-00690","24\" Pipe, RCP Class III, In Place 6' to 11' Deep",10,"LF",null,null,0,0]
["02550-C4-00100","02500-C4-00700","27\" Pipe, RCP Class III, In Place Up to 6' Deep",50,"LF",null,null,0,0]
["02550-C4-00110","02500-C4-00710","27\" Pipe, RCP Class III, In Place 6' to 11' Deep",10,"LF",null,null,0,0]
["02550-C4-00140","02500-C4-00720","30\" Pipe, RCP Class III, In Place Up to 6' Deep",50,"LF",null,null,0,0]
["02550-C4-00150","02500-C4-00730","30\" Pipe, RCP Class III, In Place 6' to 12' Deep",10,"LF",null,null,0,0]
["02505-C4-00081","02500-C4-00740","33\" Pipe, RCP Class III, In Place Up to 6' Deep",50,"LF",null,null,0,0]
["02505-C4-00091","02500-C4-00750","33\" Pipe, RCP Class III, In Place 6' to 12' Deep",10,"LF",null,null,0,0]
["02505-C4-00101","02500-C4-00760","36\" Pipe, RCP Class III, In Place Up to 6' Deep",10,"LF",null,null,0,0]
["02505-C4-00111","02500-C4-00770","36\" Pipe, RCP Class III, In Place 6' to 13' Deep",50,"LF",null,null,0,0]
["02550-C4-00120","02500-C4-00780","42\" Pipe, RCP Class III, In Place Up to 6' Deep",10,"LF",null,null,0,0]
["02550-C4-00130","02500-C4-00790","42\" Pipe, RCP Class III, In Place 6' to 13' Deep",50,"LF",null,null,0,0]
["02505-C4-00141","02500-C4-00800","48\" Pipe, RCP Class III, In Place Up to 6' Deep",10,"LF",null,null,0,0]
["02505-C4-00151","02500-C4-00810","48\" Pipe, RCP Class III, In Place 6' to 13' Deep",50,"LF",null,null,0,0]
["02550-C4-00380","02500-C4-00812","54\" Pipe, RCP Class III, In Place  6' to 13' Deep",10,"LF",null,null,0,0]
["02550-C4-00390","02500-C4-00814","60\" Pipe, RCP Class III, In Place 6' to 13' Deep",10,"LF",null,null,0,0]
["02550-C4-00400","02500-C4-00816","66\" Pipe, RCP Class III, In Place  6' to 13' Deep",10,"LF",null,null,0,0]
["02550-C4-00410","02500-C4-00818","72\" Pipe, RCP Class III, In Place  6' to 13' Deep",10,"LF",null,null,0,0]
["02550-C4-00430","02500-C4-00820","15\" Pipe, RCP Class IV, In Place Up to 6' Deep",50,"LF",null,null,0,0]
["02550-C4-00440","02500-C4-00830","15\" Pipe, RCP Class IV, In Place 6' to 10' Deep",5,"LF",null,null,0,0]
["02550-C4-00450","02500-C4-00840","15\" Pipe, RCP Class IV, In Place > 10' Deep",5,"LF",null,null,0,0]
["02550-C4-00460","02500-C4-00850","18\" Pipe, RCP Class IV, In Place Up to 6' Deep",50,"LF",null,null,0,0]
["02550-C4-00470","02500-C4-00860","18\" Pipe, RCP Class IV, In Place 6' to 10' Deep",5,"LF",null,null,0,0]
["02550-C4-00480","02500-C4-00870","18\" Pipe, RCP Class IV, In Place > 10' Deep",5,"LF",null,null,0,0]
["02550-C4-00490","02500-C4-00880","21\" Pipe, RCP Class IV, In Place Up to 6' Deep",50,"LF",null,null,0,0]
["02550-C4-00500","02500-C4-00890","21\" Pipe, RCP Class IV, In Place 6' to 10' Deep",5,"LF",null,null,0,0]
["02550-C4-00510","02500-C4-00900","21\" Pipe, RCP Class IV, In Place > 10' Deep",5,"LF",null,null,0,0]
["02550-C4-00520","02500-C4-00910","24\" Pipe, RCP Class IV, In Place Up to 6' Deep",50,"LF",null,null,0,0]
["02550-C4-00530","02500-C4-00920","24\" Pipe, RCP Class IV, In Place 6' to 10' Deep",5,"LF",null,null,0,0]
["02550-C4-00540","02500-C4-00930","24\" Pipe, RCP Class IV, In Place > 10' Deep",5,"LF",null,null,0,0]
["02550-C4-00550","02500-C4-00940","30\" Pipe, RCP Class IV, In Place Up to 6' Deep",50,"LF",null,null,0,0]
["02550-C4-00560","02500-C4-00950","30\" Pipe, RCP Class IV, In Place 6' to 10' Deep",5,"LF",null,null,0,0]
["02550-C4-00570","02500-C4-00960","30\" Pipe, RCP Class IV, In Place > 10' Deep",5,"LF",null,null,0,0]
["02550-C4-00580","02500-C4-00970","33\" Pipe, RCP Class IV, In Place Up to 6' Deep",50,"LF",null,null,0,0]
["02550-C4-00590","02500-C4-00980","33\" Pipe, RCP Class IV, In Place 6' to 10' Deep",5,"LF",null,null,0,0]
["02550-C4-00600","02500-C4-00990","33\" Pipe, RCP Class IV, In Place > 10' Deep",5,"LF",null,null,0,0]
["02550-C4-00610","02500-C4-01000","36\" Pipe, RCP Class IV, In Place Up to 6' Deep",5,"LF",null,null,0,0]
["02550-C4-00620","02500-C4-01010","36\" Pipe, RCP Class IV, In Place 6' to 10' Deep",50,"LF",null,null,0,0]
["02550-C4-00630","02500-C4-01020","36\" Pipe, RCP Class IV, In Place > 10' Deep",5,"LF",null,null,0,0]
["02550-C4-00640","02500-C4-01030","42\" Pipe, RCP Class IV, In Place Up to 6' Deep",5,"LF",null,null,0,0]
["02550-C4-00650","02500-C4-01040","42\" Pipe, RCP Class IV, In Place 6' to 10' Deep",50,"LF",null,null,0,0]
["02550-C4-00660","02500-C4-01050","42\" Pipe, RCP Class IV, In Place > 10' Deep",5,"LF",null,null,0,0]
["02550-C4-00670","02500-C4-01060","48\" Pipe, RCP Class IV, In Place Up to 6' Deep",5,"LF",null,null,0,0]
["02550-C4-00680","02500-C4-01070","48\" Pipe, RCP Class IV, In Place 6' to 10' Deep",50,"LF",null,null,0,0]
["02550-C4-00690","02500-C4-01080","48\" Pipe, RCP Class IV, In Place > 10' Deep",5,"LF",null,null,0,0]
["02550-C4-00720","02550-C4-01812","54\" Pipe, RCP Class IV, In Place 6' to 10' Deep",50,"LF",null,null,0,0]
["02550-C4-00730","02550-C4-01813","54\" Pipe, RCP Class IV, In Place > 10' Deep",5,"LF",null,null,0,0]
["02550-C4-00760","02550-C4-01815","60\" Pipe, RCP Class IV, In Place 6' to 10' Deep",5,"LF",null,null,0,0]
["02550-C4-00770","02550-C4-01816","60\" Pipe, RCP Class IV, In Place > 10' Deep",50,"LF",null,null,0,0]
["02550-C4-00820","02550-C4-01818","66\" Pipe, RCP Class IV, In Place 6' to 10' Deep",5,"LF",null,null,0,0]
["02550-C4-00830","02550-C4-01819","66\" Pipe, RCP Class IV, In Place > 10' Deep",50,"LF",null,null,0,0]
["02550-C4-00840","02550-C4-01821","72\" Pipe, RCP Class IV, In Place 6' to 10' Deep",5,"LF",null,null,0,0]
["02550-C4-00850","02550-C4-01822","72\" Pipe, RCP Class IV, In Place > 10' Deep",50,"LF",null,null,0,0]
["02550-C4-00860","02500-C4-01090","18\" x 12\" Elliptical Pipe (15\" Equivalent), RCP Class III, In Place Up to 6' Deep",5,"LF",null,null,0,0]
["02550-C4-00870","02500-C4-01100","18\" x 12\" Elliptical Pipe (15\" Equivalent), RCP Class IV, In Place 6' to 10' Deep",5,"LF",null,null,0,0]
["02550-C4-00880","02500-C4-01110","23\" x 14\" Elliptical Pipe (18\" Equivalent), RCP Class III, In Place Up to 6' Deep",5,"LF",null,null,0,0]
["02550-C4-00890","02500-C4-01120","23\" x 14\" Elliptical Pipe (18\" Equivalent), RCP Class III, In Place 6' to 10' Deep",5,"LF",null,null,0,0]
["02550-C4-00900","02500-C4-01130","30\" x 19\" Elliptical Pipe (24\" Equivalent), RCP Class III, In Place Up to 6' Deep",5,"LF",null,null,0,0]
["02550-C4-00910","02500-C4-01140","30\" x 19\" Elliptical Pipe (24\" Equivalent), RCP Class III, In Place 6' to 10' Deep",5,"LF",null,null,{"$f":"(D149*F149)*0.9","v":0},{"$f":"(D149*G149)*0.1","v":0}]
["02550-C4-00920","02500-C4-01150","38\" x 24\" Elliptical Pipe (30\" Equivalent), RCP Class III, In Place Up to 6' Deep",5,"LF",null,null,0,0]
["02550-C4-00930","02500-C4-01160","38\" x 24\" Elliptical Pipe (30\" Equivalent), RCP Class III, In Place 6' to 10' Deep",5,"LF",null,null,0,0]
["02550-C4-00940","02500-C4-01170","45\" x 29\" Elliptical Pipe (36\" Equivalent), RCP Class III, In Place Up to 6' Deep",5,"LF",null,null,0,0]
["02550-C4-00950","02500-C4-01180","45\" x 29\" Elliptical Pipe (36\" Equivalent), RCP Class III, In Place 6' to 10' Deep",5,"LF",null,null,0,0]
["02550-C4-00960","02500-C4-01190","12\" Pipe, HDPE, In Place Up to 6' Deep",50,"LF",null,null,0,0]
["02550-C4-01000","02500-C4-01200","12\" Pipe, HDPE, In Place > 6' Deep",5,"LF",null,null,0,0]
["02550-C4-01010","02500-C4-01250","18\" Pipe, HDPE, In Place Up to 6' Deep",50,"LF",null,null,0,0]
["02550-C4-01020","02500-C4-01260","18\" Pipe, HDPE, In Place > 6' Deep",5,"LF",null,null,0,0]
["02550-C4-01090","02500-C4-01290","24\" Pipe, HDPE, In Place Up to 6' Deep",50,"LF",null,null,0,0]
["02550-C4-01100","02500-C4-01300","24\" Pipe, HDPE, In Place > 6' Deep",5,"LF",null,null,0,0]
["02550-C4-01110","02550-C4-01904","30\" Pipe, HDPE, In Place Up to 6' Deep",50,"LF",null,null,0,0]
["02550-C4-01120","02550-C4-01905","30\" Pipe, HDPE, In Place > 6' Deep",5,"LF",null,null,0,0]
["02550-C4-01190","02550-C4-01908","36\" Pipe, HDPE, In Place Up to 6' Deep",50,"LF",null,null,0,0]
["02550-C4-01200","02550-C4-01909","36\" Pipe, HDPE, In Place > 6' Deep",5,"LF",null,null,0,0]
["02550-C4-01210","02550-C4-01910","42\" Pipe, HDPE, In Place Up to 6' Deep",5,"LF",null,null,0,0]
["02550-C4-01220","02550-C4-01911","42\" Pipe, HDPE, In Place > 6' Deep",50,"LF",null,null,0,0]
["02550-C4-01230","02550-C4-01912","48\" Pipe, HDPE, In Place Up to 6' Deep",5,"LF",null,null,0,0]
["02550-C4-01240","02550-C4-01913","48\" Pipe, HDPE, In Place > 6' Deep",50,"LF",null,null,0,0]
["02550-C4-01250","02550-C4-01914","60\" Pipe, HDPE, In Place Up to 6' Deep",5,"LF",null,null,0,0]
["02550-C4-01260","02550-C4-01915","60\" Pipe, HDPE, In Place > 6' Deep",50,"LF",null,null,0,0]
["02550-C4-01270","02550-C4-01302","4\" Pipe, DIP (Class 52), In Place Up to 6' Deep",5,"LF",null,null,0,0]
["02550-C4-01280","02550-C4-01303","4\" Pipe, DIP (Class 52), In Place > 6' Deep",5,"LF",null,null,0,0]
["02550-C4-01290","02550-C4-01304","6\" Pipe, DIP (Class 52), In Place Up to 6' Deep",5,"LF",null,null,0,0]
["02550-C4-01300","02550-C4-01305","6\" Pipe, DIP (Class 52), In Place  > 6' Deep",5,"LF",null,null,0,0]
["02550-C4-01302","02550-C4-01306","8\" Pipe, DIP (Class 52), In Place Up to 6' Deep",5,"LF",null,null,0,0]
["02550-C4-01303","02550-C4-01307","8\" Pipe, DIP (Class 52), In Place > 6' Deep",5,"LF",null,null,0,0]
["02550-C4-01304","02550-C4-01308","12\" Pipe, DIP (Class 52), In Place Up to 6' Deep",5,"LF",null,null,0,0]
["02550-C4-01305","02550-C4-01309","12\" Pipe, DIP (Class 52), In Place > 6' Deep",5,"LF",null,null,0,0]
["02550-C4-01306","02550-C4-01310","16\" Pipe, DIP (Class 52), In Place Up to 6' Deep",5,"LF",null,null,0,0]
["02550-C4-01307","02550-C4-01320","16\" Pipe, DIP (Class 52), In Place > 6' Deep",5,"LF",null,null,0,0]
["02550-C4-01308","02550-C4-01330","18\" Pipe, DIP (Class 52), In Place Up to 6' Deep",5,"LF",null,null,0,0]
["02550-C4-01309","02550-C4-01340","18\" Pipe, DIP (Class 52), In Place > 6' Deep",5,"LF",null,null,0,0]
["02550-C4-01310","02550-C4-01350","20\" Pipe, DIP (Class 52), In Place Up to 6' Deep",5,"LF",null,null,0,0]
["02550-C4-01320","02550-C4-01360","20\" Pipe, DIP (Class 52), In Place > 6' Deep",5,"LF",null,null,0,0]
["02550-C4-01330","02550-C4-01370","24\" Pipe, DIP (Class 52), In Place Up to 6' Deep",5,"LF",null,null,0,0]
["02550-C4-01340","02550-C4-01380","24\" Pipe, DIP (Class 52), In Place > 6' Deep",5,"LF",null,null,0,0]
["02550-C4-01350","02550-C4-01390","30\" Pipe, DIP (Class 52), In Place Up to 6' Deep",5,"LF",null,null,0,0]
["02550-C4-01360","02550-C4-01400","30\" Pipe, DIP (Class 52), In Place > 6' Deep",5,"LF",null,null,0,0]
["02550-C4-01412","02550-C4-01500","8\" Pipe, DIP (CLASS 56), In Place Up to 6' Deep",5,"LF",null,null,0,0]
["02550-C4-01411","02550-C4-01510","8\" Pipe, DIP (CLASS 56), In Place > 6' Deep",5,"LF",null,null,0,0]
["02550-C4-01410","02550-C4-01520","10\" Pipe, DIP (CLASS 56), In Place Up to 6' Deep",5,"LF",null,null,0,0]
["02500-C4-03510","02550-C4-01530","10\" Pipe, DIP (CLASS 56), In Place > 6' Deep",5,"LF",null,null,0,0]
["02500-C4-03520","02550-C4-01540","12\" Pipe, DIP (CLASS 56), In Place Up to 6' Deep",5,"LF",null,null,0,0]
["02550-C4-01420","02550-C4-01550","12\" Pipe, DIP (CLASS 56), In Place > 6' Deep",5,"LF",null,null,0,0]
["02550-C4-01430","02550-C4-01560","14\" Pipe, DIP (CLASS 56), In Place Up to 6' Deep",5,"LF",null,null,0,0]
["02550-C4-01440","02550-C4-01570","14\" Pipe, DIP (CLASS 56), In Place > 6' Deep",5,"LF",null,null,0,0]
["02550-C4-01470","02550-C4-01580","16\" Pipe, DIP (CLASS 56), In Place Up to 6' Deep",5,"LF",null,null,0,0]
["02550-C4-01450","02550-C4-01590","16\" Pipe, DIP (CLASS 56), In Place > 6' Deep",5,"LF",null,null,0,0]
["02550-C4-01460","02550-C4-01600","18\" Pipe, DIP (CLASS 56), In Place Up to 6' Deep",5,"LF",null,null,0,0]
["02500-C4-03120","02550-C4-01610","18\" Pipe, DIP (CLASS 56), In Place > 6' Deep",5,"LF",null,null,0,0]
["02500-C4-03130","02550-C4-01620","20\" Pipe, DIP (CLASS 56), In Place Up to 6' Deep",5,"LF",null,null,0,0]
["02500-C4-03140","02550-C4-01630","20\" Pipe, DIP (CLASS 56), In Place > 6' Deep",5,"LF",null,null,0,0]
["02500-C4-03500","02550-C4-01640","24\" Pipe, DIP (CLASS 56), In Place Up to 6' Deep",5,"LF",null,null,0,0]
["02500-C4-03501","02550-C4-01650","24\" Pipe, DIP (CLASS 56), In Place > 6' Deep",5,"LF",null,null,0,0]
["02550-C4-01480","02550-C4-01412","4\" Pipe, PVC ( Schedule 40 or SDR 35) in Place up to 6' Deep",5,"LF",null,null,0,0]
[null,"02550-C4-01411","6\" Pipe, PVC ( Schedule 40 or SDR 35) in Place up to 6' Deep",5,"LF",null,null,{"$f":"(D205*F205)*0.9","v":0},{"$f":"(D205*G205)*0.1","v":0}]
[null,"02550-C4-01410","8\" Pipe, PVC ( Schedule 40 or SDR 35), In Place up to 6' Deep",5,"LF",null,null,0,0]
[null,"02500-C4-02000","15\" Polypropylene Pipe,In Place Up to 6' Deep",50,"LF",null,null,0,0]
[null,"02500-C4-02010","15\" Polypropylene Pipe,In Place 6' to 10' Deep",5,"LF",null,null,0,0]
[null,"02500-C4-02020","15\" Polypropylene Pipe,In Place >10' Deep",5,"LF",null,null,0,0]
[null,"02500-C4-02030","18\" Polypropylene Pipe,In Place Up to 6' Deep",50,"LF",null,null,0,0]
[null,"02500-C4-02040","18\" Polypropylene Pipe,In Place 6' to 10' Deep",5,"LF",null,null,0,0]
[null,"02500-C4-02050","18\" Polypropylene Pipe,In Place >10' Deep",5,"LF",null,null,0,0]
[null,"02500-C4-02060","24\" Polypropylene Pipe,In Place Up to 6' Deep",50,"LF",null,null,0,0]
[null,"02500-C4-02070","24\" Polypropylene Pipe,In Place 6' to 10' Deep",5,"LF",null,null,0,0]
[null,"02500-C4-02080","24\" Polypropylene Pipe,In Place >10' Deep",5,"LF",null,null,0,0]
[null,"02500-C4-02090","30\" Polypropylene Pipe,In Place Up to 6' Deep",50,"LF",null,null,0,0]
[null,"02500-C4-02100","30\" Polypropylene Pipe,In Place 6' to 10' Deep",5,"LF",null,null,0,0]
[null,"02500-C4-02110","30\" Polypropylene Pipe,In Place >10' Deep",5,"LF",null,null,0,0]
[null,"02500-C4-02120","36\" Polypropylene Pipe,In Place Up to 6' Deep",50,"LF",null,null,0,0]
[null,"02500-C4-02130","36\" Polypropylene Pipe,In Place 6' to 10' Deep",5,"LF",null,null,0,0]
[null,"02500-C4-02140","36\" Polypropylene Pipe,In Place >10' Deep",5,"LF",null,null,0,0]
[null,"02500-C4-02150","42\" Polypropylene Pipe,In Place Up to 6' Deep",5,"LF",null,null,0,0]
[null,"02500-C4-02160","42\" Polypropylene Pipe,In Place 6' to 10' Deep",50,"LF",null,null,0,0]
[null,"02500-C4-02170","42\" Polypropylene Pipe,In Place >10' Deep",5,"LF",null,null,0,0]
[null,"02500-C4-02180","48\" Polypropylene Pipe,In Place Up to 6' Deep",5,"LF",null,null,0,0]
[null,"02500-C4-02190","48\" Polypropylene Pipe,In Place 6' to 10' Deep",50,"LF",null,null,0,0]
[null,"02500-C4-02200","48\" Polypropylene Pipe,In Place >10' Deep",5,"LF",null,null,0,0]
[null,"02500-C4-02210","60\" Polypropylene Pipe,In Place Up to 6' Deep",5,"LF",null,null,0,0]
[null,"02500-C4-02220","60\" Polypropylene Pipe,In Place 6' to 10' Deep",50,"LF",null,null,0,0]
[null,"02500-C4-02230","60\" Polypropylene Pipe,In Place >10' Deep",5,"LF",null,null,0,0]
[null,"02505-C4-01420","Underdrain, Standard VDOT UD-1",10,"LF",null,null,0,0]
[null,"02505-C4-01430","Underdrain, Standard VDOT UD-2",10,"LF",null,null,0,0]
[null,"02505-C4-01440","Underdrain, Standard VDOT UD-4",10,"LF",null,null,0,0]
[null,"02505-C4-01450","Combined Underdrain CD-1",10,"LF",null,null,0,0]
[null,"02505-C4-01460","Combined Underdrain CD-2",10,"LF",null,null,0,0]
[null,"02505-C4-01480","Abandon storm pipe in place Including capping all open ends and completely filling sewer with flowable fill (All material types, sizes and depths)",100,"LF",null,null,0,0]
[null,"02500-C4-00010","Storm Manhole MH-1 (Arlington County Detail D-3.0), In Place Up to 8' Deep",10,"EA",null,null,0,0]
[null,"02500-C4-00011","Storm Manhole MH-1 (Arlington County Detail D-3.0), In Place, PER ADDITIONAL VF OVER 8'",50,"VF",null,null,0,0]
[null,"02500-C4-SP020","Storm Manhole PH-1 (Arlington County Detail D-3.1), In Place, 4' Inside Diameter up to 8' depth",10,"EA",null,null,0,0]
[null,"02500-C4-SP021","Storm Manhole PH-1 (Arlington County Detail D-3.1), In Place, 4' Inside Diameter, > 8' depth per additional vertical foot",50,"VF",null,null,0,0]
[null,"02500-C4-SP022","Storm Manhole PH-1 (Arlington County Detail D-3.1), In Place, 5' Inside Diameter up to 8' depth",5,"EA",null,null,0,0]
[null,"02500-C4-SP023","Storm Manhole PH-1 (Arlington County Detail D-3.1), In Place, 5' Inside Diameter, > 8' depth per additional vertical foot",25,"VF",null,null,0,0]
[null,"02500-C4-SP024","Storm Manhole PH-1 (Arlington County Detail D-3.1), In Place, 6' Inside Diameter up to 8' depth",5,"EA",null,null,0,0]
[null,"02500-C4-SP025","Storm Manhole PH-1 (Arlington County Detail D-3.1), In Place, 6' Inside Diameter, > 8' depth per additional vertical foot",25,"VF",null,null,0,0]
[null,"02500-C4-00030","Storm Manhole MH-2 (Arlington County Detail D-3.3), In Place up to 8' deep",5,"EA",null,null,0,0]
[null,"02500-C4-00031","Storm Manhole MH-2 (Arlington County Detail D-3.3), In Place, PER ADDITIONAL VF OVER 8'",25,"VF",null,null,0,0]
[null,"02500-C4-00040","Storm Manhole MH-3 (Arlington County Detail D-3.4), In Place Up to 8' Deep",5,"EA",null,null,0,0]
[null,"02500-C4-00041","Storm Manhole MH-3 (Arlington County Detail D-3.4), In Place, PER ADDITIONAL VF OVER 8'",30,"VF",null,null,0,0]
[null,"02505-C4-00080","CB-2 (Arlington County Standards), In Place Up to 6' Deep",10,"EA",null,null,0,0]
[null,"02505-C4-00090","CB-2 (Arlington County Standards), Each VF Over 6' Deep",50,"VF",null,null,0,0]
[null,"02505-C4-00100","CB-2A or CB-2B (throat lengths from 8'-6\" up to 16'-0\"),  In Place Up to 6' Deep, Arlington County Standards.",10,"EA",null,null,0,0]
[null,"02505-C4-00110","CB-2A or CB-2B (throat lengths from 8'-6\" up to 16'-0\"), Each VF Over 6' Deep, Arlington County Standards.",50,"VF",null,null,0,0]
[null,"02505-C4-00120","PCB-2, In Place, upto 6' deep, 4' to 6' Inside Diameter, Arlington County Standard 1.5 and 1.6",10,"EA",null,null,0,0]
[null,"02505-C4-00130","PCB-2, In Place, each VF over 6' deep, 4' to 6' Inside Diameter, Arlington County Standard 1.5 and 1.6",50,"VF",null,null,0,0]
[null,"02505-C4-00420","Standard Ditch Drop Inlet, VDOT DI-5 (12\" to 42\" Pipe), All Depths",10,"EA",null,null,0,0]
[null,"02505-C4-00425","Grate Inlet, Standard VDOT DI-7 (12\" to 42\" Pipe), All Depths",10,"EA",null,null,0,0]
[null,"02505-C4-00380","Yard Inlet (Arlington County Detail D-1.10), In Place Up to 6' Deep",10,"EA",null,null,0,0]
[null,"02505-C4-00390","Yard Inlet (Arlington County Detail D-1.10), Each VF Over 6' Deep",50,"VF",null,null,0,0]
[null,"02505-C4-00400","Yard Inlet Pre-Cast (Arlington County Detail D-1.11), In Place Up to 6' Deep",10,"EA",null,null,0,0]
[null,"02505-C4-00410","Yard Inlet Pre-Cast (Arlington County Detail D-1.11), Each VF Over 6' Deep",50,"VF",null,null,0,0]
[null,"02505-C4-00430","Grate Inlet Non-roadway Shallow (Arlington County Detail D-1.9), In Place",10,"EA",null,null,0,0]
[null,"02500-C4-00460","Storm Manhole Frame and Cover, Remove & Replace",10,"EA",null,null,0,0]
[null,"02505-C4-00470","Catch Basin Structure Top, Remove & Replace",5,"EA",null,null,0,0]
[null,"02505-C4-00480","Drop Inlet Structure Top, Remove & Replace",5,"EA",null,null,0,0]
[null,"02500-C4-02300","Standard Endwall for pipe culverts 15\" circular (VDOT standard EW-1)",5,"EA",null,null,0,0]
[null,"02500-C4-02310","Standard Endwall for pipe culverts 18\" circular (VDOT standard EW-1)",5,"EA",null,null,0,0]
[null,"02500-C4-02320","Standard Endwall for pipe culverts 24\" circular (VDOT standard EW-1)",5,"EA",null,null,0,0]
[null,"02500-C4-02330","Standard Endwall for pipe culverts 30\" circular (VDOT standard EW-1)",5,"EA",null,null,0,0]
[null,"02500-C4-02340","Standard Endwall for pipe culverts 36\" circular (VDOT standard EW-1)",5,"EA",null,null,{"$f":"(D269*F269)*0.9","v":0},{"$f":"(D269*G269)*0.1","v":0}]
[null,"02500-C4-02500","Standard Endwall for pipe culverts 42\" circular (VDOT standard EW-2)",5,"EA",null,null,0,0]
[null,"02500-C4-02510","Standard Endwall for pipe culverts 48\" circular (VDOT standard EW-2)",5,"EA",null,null,0,0]
[null,"02500-C4-02520","Standard Endwall for pipe culverts 54\" circular (VDOT standard EW-2)",5,"EA",null,null,0,0]
[null,"02500-C4-02530","Standard Endwall for pipe culverts 60\" circular (VDOT standard EW-2)",5,"EA",null,null,0,0]
[null,"02500-C4-02540","Standard Endwall for pipe culverts 72\" circular (VDOT standard EW-2)",5,"EA",null,null,0,0]
[null,"02500-C4-02550","Standard Endwall for pipe culverts 84\" circular (VDOT standard EW-2)",5,"EA",null,null,0,0]
[null,"02500-C4-02350","Precast Endwall for pipe culverts 15\" circular (VDOT standard EW-1PC)",5,"EA",null,null,0,0]
[null,"02500-C4-02360","Precast Endwall for pipe culverts 18\" circular (VDOT standard EW-1PC)",5,"EA",null,null,0,0]
[null,"02500-C4-02370","Precast Endwall for pipe culverts 24\" circular (VDOT standard EW-1PC)",5,"EA",null,null,0,0]
[null,"02500-C4-02380","Precast Endwall for pipe culverts 30\" circular (VDOT standard EW-1PC)",5,"EA",null,null,0,0]
[null,"02500-C4-02390","Precast Endwall for pipe culverts 36\" circular (VDOT standard EW-1PC)",5,"EA",null,null,0,0]
[null,"02500-C4-02560","Precast Endwall for pipe culverts 42\" circular (VDOT standard EW-2PC)",5,"EA",null,null,0,0]
[null,"02500-C4-02570","Precast Endwall for pipe culverts 48\" circular (VDOT standard EW-2PC)",5,"EA",null,null,0,0]
[null,"02500-C4-02580","Precast Endwall for pipe culverts 54\" circular (VDOT standard EW-2PC)",5,"EA",null,null,0,0]
[null,"02500-C4-02590","Precast Endwall for pipe culverts 60\" circular (VDOT standard EW-2PC)",5,"EA",null,null,0,0]
[null,"02500-C4-02600","Precast Endwall for pipe culverts 72\" circular (VDOT standard EW-2PC)",5,"EA",null,null,0,0]
[null,"02500-C4-02610","Precast Endwall for pipe culverts 84\" circular (VDOT standard EW-2PC)",5,"EA",null,null,0,0]
[null,"02500-C4-02640","Flared end-section for 12\" concrete pipe culvert (VDOT standard ES-1)",5,"EA",null,null,0,0]
[null,"02500-C4-02650","Flared end-section for 15\" concrete pipe culvert (VDOT standard ES-1)",5,"EA",null,null,0,0]
[null,"02500-C4-02660","Flared end-section for 18\" concrete pipe culvert (VDOT standard ES-1)",5,"EA",null,null,0,0]
[null,"02500-C4-02670","Flared end-section for 21\" concrete pipe culvert (VDOT standard ES-1)",5,"EA",null,null,0,0]
[null,"02500-C4-02680","Flared end-section for 24\" concrete pipe culvert (VDOT standard ES-1)",5,"EA",null,null,0,0]
[null,"02500-C4-02690","Flared end-section for 27\" concrete pipe culvert (VDOT standard ES-1)",5,"EA",null,null,0,0]
[null,"02500-C4-02700","Flared end-section for 30\" concrete pipe culvert (VDOT standard ES-1)",5,"EA",null,null,0,0]
[null,"02500-C4-02710","Flared end-section for 36\" concrete pipe culvert (VDOT standard ES-1)",5,"EA",null,null,0,0]
[null,"02500-C4-02720","Flared end-section for 42\" concrete pipe culvert (VDOT standard ES-1)",5,"EA",null,null,0,0]
[null,"02500-C4-02730","Flared end-section for 48\" concrete pipe culvert (VDOT standard ES-1)",5,"EA",null,null,0,0]
[null,"02500-C4-02740","Flared end-section for 54\" concrete pipe culvert (VDOT standard ES-1)",5,"EA",null,null,0,0]
[null,"02500-C4-02750","Flared end-section for 60\" concrete pipe culvert (VDOT standard ES-1)",5,"EA",null,null,0,0]
[null,"02550-C4-00426 ","15\" Pipe Tee Section Drop Inlet, VDOT DI-9, All depths (PRECAST)",5,"EA",null,null,0,0]
[null,"02500-C4-03510","Cast in place stormwater management drainage structure (VDOT standard SWM-1)",5,"EA",null,null,0,0]
[null,"02505-C4-00540","Partial Wall Repair of Storm Manhole, Catch Basin, Drop Inlet, Yard Inlet, or Grate Inlet",5,"SF",null,null,0,0]
[null,"02500-C4-02840","Junction Box, Pre-Cast for 48\" pipe culvert(VDOT standard JB-1), In Place",5,"VF",null,null,0,0]
[null,"02505-C4-02830","Junction Box, Pre-Cast for 12\" to 36\" Dia pipe culvert(VDOT standard JB-1), In Place",5,"VF",null,null,0,0]
[null,"02500-C4-02850","Junction Box, Pre-Cast for 54\" pipe culvert(VDOT standard JB-1), In Place",5,"VF",null,null,0,0]
[null,"02500-C4-02860","Junction Box, Pre-Cast for 60\" pipe culvert(VDOT standard JB-1), In Place",5,"VF",null,null,0,0]
[null,"02500-C4-02870","Junction Box, Pre-Cast for 66\" pipe culvert(VDOT standard JB-1), In Place",5,"VF",null,null,0,0]
[null,"02500-C4-02880","Junction Box, Pre-Cast for 72\" pipe culvert(VDOT standard JB-1), In Place",5,"VF",null,null,0,0]
[null,"02505-C4-02831","Junction Box, Cast in place  for 12\" to 36\" Dia pipe culvert(VDOT standard JB-1), In Place",5,"VF",null,null,0,0]
[null,"02500-C4-02890","Junction Box, Cast in place, for 48\" pipe culvert(VDOT standard JB-1), In Place",5,"VF",null,null,0,0]
[null,"02500-C4-02900","Junction Box, Cast in place, for 54\" pipe culvert(VDOT standard JB-1), In Place",5,"VF",null,null,0,0]
[null,"02500-C4-03000","Junction Box, Cast in place, for 60\" pipe culvert(VDOT standard JB-1), In Place",5,"VF",null,null,0,0]
[null,"02500-C4-03100","Junction Box, Cast in place, for 66\" pipe culvert(VDOT standard JB-1), In Place",5,"VF",null,null,0,0]
[null,"02500-C4-03110","Junction Box, Cast in place, for 72\" pipe culvert(VDOT standard JB-1), In Place",5,"VF",null,null,0,0]
[null,"02500-C4-03150","Standard paved flume for 12\" pipe (VDOT standard PG-4)",5,"SY",null,null,0,0]
[null,"02500-C4-03160","Standard paved flume for 15\"  pipe (VDOT standard PG-4)",5,"SY",null,null,0,0]
[null,"02500-C4-03170","Standard paved flume for 18\" pipe (VDOT standard PG-4)",5,"SY",null,null,0,0]
[null,"02500-C4-03180","Standard paved flume for 21\" pipe (VDOT standard PG-4)",5,"SY",null,null,0,0]
[null,"02500-C4-03190","Standard paved flume for 24\" pipe (VDOT standard PG-4)",5,"SY",null,null,0,0]
[null,"02500-C4-03200","Standard Energy dissipator for use with paved flumes (VDOT standard EG-1, 1A)",5,"CY",null,null,0,0]
[null,"02500-C4-03210","Precast energy dissipator (VDOT standard EG-1, 1A PC)",5,"CY",null,null,0,0]
[null,"02500-C4-03120","Paved ditch (VDOT standard PG-2A)",5,"SY",null,null,0,0]
[null,"02500-C4-03130","Paved ditch (VDOT standard PG-5)",5,"SY",null,null,0,0]
[null,"02500-C4-03140","Sodded ditch including fine grading",5,"SY",null,null,0,0]
[]
[]
[]
[{"$nulls":5},"C4 SUBTOTAL",null,{"$f":"SUM(H84:H326)","v":0},{"$f":"SUM(I84:I326)","v":0}]
[null,"C5","GUARDRAIL"]
[null,"05500-C5-00010","Guardrail VDOT GR-2",5,"LF",null,null,{"$f":"(D329*F329)*0.9","v":0},{"$f":"(D329*G329)*0.1","v":0}]
[null,"05500-C5-00020","Guardrail VDOT GR-2A",5,"LF",null,null,{"$f":"(D330*F330)*0.9","v":0},{"$f":"(D330*G330)*0.1","v":0}]
[null,"05500-C5-00030","Guardrail VDOT GR-2, 7' post",5,"LF",null,null,{"$f":"(D331*F331)*0.9","v":0},{"$f":"(D331*G331)*0.1","v":0}]
[null,"05500-C5-00040","Guardrail VDOT GR-2, 8' post",5,"LF",null,null,0,0]
[null,"05500-C5-00050","Guardrail Terminal Treatment, VDOT GR-6",5,"LF",null,null,0,0]
[null,"05500-C5-00060","Guardrail Terminal Installation Site Preparation, VDOT GR-7",5,"EA",null,null,0,0]
[null,"05500-C5-00070","Guardrail End Terminal Treatment, VDOT GR-11",5,"EA",null,null,0,0]
[null,"05500-C5-00080","Fixed Object Attachment , VDOT GR-FOA-1",5,"EA",null,null,0,0]
[null,"05500-C5-00090","Fixed Object Attachment , VDOT GR-FOA-2",5,"EA",null,null,0,0]
[]
[]
[{"$nulls":5},"C5 SUBTOTAL",null,{"$f":"SUM(H329:H337)","v":0},{"$f":"SUM(I329:I337)","v":0}]
[null,"C6","WATERMAIN WORK"]
["02550-C6-00250","02550-C6-00140","12-Inch Gate Valve & Valve Box",5,"EA",null,null,{"$f":"(D342*F342)*0.9","v":0},{"$f":"(D342*G342)*0.1","v":0}]
["02550-C6-00260","02550-C6-00150","8-Inch Gate Valve & Valve Box",5,"EA",null,null,{"$f":"(D343*F343)*0.9","v":0},{"$f":"(D343*G343)*0.1","v":0}]
["02550-C6-00270","02550-C6-00160","6-Inch Gate Valve & Valve Box",5,"EA",null,null,0,0]
["02550-C6-00280","02550-C6-00170","4-Inch Gate Valve & Valve Box",5,"EA",null,null,0,0]
["02550-C6-00620","02550-C6-00190","Connect To Existing 12-Inch Water Main",5,"EA",null,null,0,0]
["02550-C6-00630","02550-C6-00200","Connect To Existing 8-Inch Water Main",5,"EA",null,null,0,0]
["02550-C6-00640","02550-C6-00210","Connect To Existing 6-Inch Water Main",5,"EA",null,null,0,0]
["02550-C6-00650","02550-C6-00220","Connect To Existing 4-Inch Water Main",5,"EA",null,null,0,0]
["02550-C6-00660","02550-C6-00230","2-Inch Air Release Or Vacuum Valve In Concrete Manhole For All Diameter Of Water Mains",5,"EA",null,null,0,0]
["02550-C6-00670","02550-C6-00240","2-Inch Blowoff Valve Assembly & Box",5,"EA",null,null,0,0]
["02550-C6-00680","02550-C6-00250","Remove Existing Fire Hydrant",5,"EA",null,null,0,0]
["02550-C6-00690","02550-C6-00260","Remove And Reset Existing Fire Hydrant",5,"EA",null,null,0,0]
["02550-C6-00700","02550-C6-00270","Install New Fire Hydrant (includes Fire Hydrant, Gate Valve with Valve Box and up to 20 LF 6-inch DIP CL-52)",5,"EA",null,null,0,0]
["02550-C6-00710","02550-C6-00280","Fire Hydrant Vertical Extension",5,"EA",null,null,0,0]
["02550-C6-00720","02550-C6-00300","Cut & Cap 12-Inch Water Main",5,"EA",null,null,0,0]
["02550-C6-00730","02550-C6-00310","Cut & Cap 10-Inch Water Main",5,"EA",null,null,0,0]
["02550-C6-00740","02550-C6-00320","Cut & Cap 8-Inch Water Main",5,"EA",null,null,0,0]
["02550-C6-00750","02550-C6-00330","Cut & Cap 6-Inch Water Main",5,"EA",null,null,0,0]
["02550-C6-00540","02550-C6-00340","Cut & Cap 4-Inch Water Main",5,"EA",null,null,0,0]
["02550-C6-00550","02550-C6-01450","4-Inch TEAM Insertion Valve And Box",5,"EA",null,null,0,0]
["02550-C6-00560","02550-C6-01460","6-Inch TEAM Insertion Valve And Box",5,"EA",null,null,0,0]
["02550-C6-00570","02550-C6-01470","8-Inch TEAM Insertion Valve And Box",5,"EA",null,null,0,0]
["02550-C6-00580","02550-C6-01480","12-Inch TEAM Insertion Valve And Box",5,"EA",null,null,0,0]
["02550-C6-00350","02550-C6-00360","4-Inch EZ Valve Insertion Valve And Box",5,"EA",null,null,0,0]
[null,"02550-C6-00370","6-Inch EZ Valve Insertion Valve And Box",5,"EA",null,null,{"$f":"(D366*F366)*0.9","v":0},{"$f":"(D366*G366)*0.1","v":0}]
[null,"02550-C6-00380","8-Inch EZ Valve Insertion Valve And Box",5,"EA",null,null,0,0]
[null,"02550-C6-00390","12-Inch EZ Valve Insertion Valve And Box",5,"EA",null,null,0,0]
[null,"02550-C6-00490","12\" x 12\" Tap/Sleeve On Iron Pipe, Valve & Valve Box",5,"EA",null,null,0,0]
[null,"02550-C6-00500","12\" x 8\" Tap/Sleeve On Iron Pipe, Valve & Valve Box",5,"EA",null,null,0,0]
[null,"02550-C6-00510","8\" x 8\" Tap/Sleeve On Iron Pipe, Valve & Valve Box",5,"EA",null,null,0,0]
[null,"02550-C6-00520","8\" x 6\" Tap/Sleeve On Iron Pipe, Valve & Valve Box",5,"EA",null,null,0,0]
[null,"02550-C6-00530","6\" x 6\" Tap/Sleeve On Iron Pipe, Valve & Valve Box",5,"EA",null,null,0,0]
[null,"02550-C6-00620","Abandon Existing Corporation Stop (TO BE PERFORMED AS DIRECTED BY THE COUNTY PROJECT OFFICER)",5,"EA",null,null,0,0]
[null,"02550-C6-00630","Service Taps - 3/4-inch and 1-inch (TAP MAIN, INSTALL COPPER TUBING, INSTALL ANGLE VALVES, CORPORATION COCK, METER BOX AND METER YOKE/METER, CONNECT TO EXISTING PRIVATE SERVICE LINE, BACKFILL AND EXCAVATION)--UP TO 1O FT.",5,"EA",null,null,0,0]
[null,"02550-C6-00650","Service Re-Taps  - 3/4-inch and 1-inch (TAP MAIN, INSTALL COPPER TUBING, CONNECT TO EXISTING SERVICE LINE, ABANDON CORPORATION COCK FROM EXISTING SERVICE LINE, BACKFILL AND EXCAVATION)-UP TO 10 FT.",5,"EA",null,null,0,0]
[null,"02550-C6-00670","Water Meter Relocations -  - 3/4-inch and 1-inch (INSTALL COPPER TUBING, CONNECT TO EXISTING COUNTY AND PRIVATE SERVICE LINES, PROVIDE NEW ANGLE VALVES, RELOCATE METER HOUSING AND METER YOKE, BACKFILL AND EXCAVATION)--UP TO 10 FT.",5,"EA",null,null,0,0]
[null,"02550-C6-00690","Service Taps  - 1 1/2-inch and 2-inch (TAP MAIN, INSTALL COPPER TUBING, INSTALL GATE VALVES, CORPORATION COCK, METER BOX AND METER, CONNECT TO EXISTING PRIVATE SERVICE LINE, BACKFILL AND EXCAVATION)--UP TO 1O FT.",5,"EA",null,null,0,0]
[null,"02550-C6-00710","Service Re-Taps  - 1 1/2-inch and 2-inch (TAP MAIN, INSTALL COPPER TUBING, CONNECT TO EXISTING SERVICE LINE, ABANDON CORPORATION COCK FROM EXISTING SERVICE LINE, BACKFILL AND EXCAVATION)--UP TO 10 FT.",5,"EA",null,null,0,0]
[null,"02550-C6-00730","Water Meter Relocations  - 1 1/2-inch and 2-inch (INSTALL COPPER TUBING, CONNECT TO EXISTING COUNTY AND PRIVATE SERVICE LINES, PROVIDE NEW GATE VALVES, RELOCATE METER HOUSING AND METER, BACKFILL AND EXCAVATION)--UP TO 10 FT.",5,"EA",null,null,0,0]
[null,"02550-C6-00550","Water Meter Frame & Cover, Replace",5,"EA",null,null,0,0]
[null,"02550-C6-00350","Remove Existing Valve Boxes",5,"EA",null,null,0,0]
[null,"02550-C6-00030","12-Inch Water Main, DIP CL-52, Up to 6' Deep",20,"LF",null,null,0,0]
[null,"02550-C6-00040","12-Inch Water Main, DIP CL-52, > 6' Deep",10,"LF",null,null,0,0]
[null,"02550-C6-00050","8-Inch Water Main, DIP CL-52, Up to 6' Deep",20,"LF",null,null,0,0]
[null,"02550-C6-00060","8-Inch Water Main, DIP CL-52, > 6' Deep",10,"LF",null,null,0,0]
[null,"02550-C6-00070","6-Inch Water Main, DIP CL-53, Up to 6' Deep",20,"LF",null,null,0,0]
[null,"02550-C6-00080","6-Inch Water Main, DIP CL-52, > 6' Deep",10,"LF",null,null,0,0]
[null,"02550-C6-00090","4-Inch Water Main, DIP CL-53, Up to 6' Deep",5,"LF",null,null,0,0]
[null,"02550-C6-00100","4-Inch Water Main, DIP CL-52, > 6' Deep",5,"LF",null,null,0,0]
[null,"02550-C6-01200","3-Inch Water Main, DIP CL-52, Up to 6' Deep",5,"LF",null,null,0,0]
[null,"02550-C6-01210","3-Inch Water Main, DIP CL-52, > 6' Deep",5,"LF",null,null,0,0]
[null,"02550-C6-00600","PVC Pipe (4\"or 6\"), SDR 35 (less than 14' of cover), only when not included in other pay items",5,"LF",null,null,0,0]
[null,"02550-C6-00610","PVC Pipe (4\" or 6\"), SDR 26 or stronger (14' to 20' of cover), only when not included in other pay items",5,"LF",null,null,0,0]
[null,"02550-C6-00640","Service Taps - 3/4-inch and 1-inch PER ADDITIONAL LINEAR FOOT OVER 10 FT.",5,"LF",null,null,0,0]
[null,"02550-C6-00660","Service Re-Taps  - 3/4-inch and 1-inch PER ADDITIONAL LINEAR FT. OVER 10 FT.",5,"LF",null,null,0,0]
[null,"02550-C6-00680","Service Relocations  - 3/4-inch and 1-inch PER ADDITIONAL LINEAR FOOT OVER 10 FT.",5,"LF",null,null,0,0]
[null,"02550-C6-00700","Service Taps  - 1 1/2-inch and 2-inch PER ADDITIONAL LINEAR FOOT OVER 10 FT.",5,"LF",null,null,0,0]
[null,"02550-C6-00720","Service Re-Taps  - 1 1/2-inch and 2-inchPER ADDITIONAL LINEAR FOOT OVER 10 FT.",5,"LF",null,null,0,0]
[null,"02550-C6-00740","Service Relocations  - 1 1/2-inch and 2-inch PER ADDITIONAL LINEAR FOOT OVER 10 FT.",5,"LF",null,null,0,0]
[]
[{"$nulls":5},"C6 SUBTOTAL",null,{"$f":"SUM(H342:H401)","v":0},{"$f":"SUM(I342:I401)","v":0}]
[null,"C7","SANITARY SEWER WORK"]
["02510-C7-00270","02510-C7-00010","Sanitary Sewer - 8\" PVC, SDR 35, DEPTH < 8’",5,"LF",null,null,{"$f":"(D404*F404)*0.9","v":0},{"$f":"(D404*G404)*0.1","v":0}]
["02510-C7-00280","02510-C7-00020","Sanitary Sewer - 8\" PVC, SDR 35, 8’ ≤ DEPTH < 14’",5,"LF",null,null,{"$f":"(D405*F405)*0.9","v":0},{"$f":"(D405*G405)*0.1","v":0}]
["02510-C7-00290","02510-C7-00030","Sanitary Sewer - 8\" PVC, SDR 26, DEPTH ≥ 14'",5,"LF",null,null,0,0]
["02510-C7-00300","02510-C7-00070","Sanitary Sewer - 10\" PVC, SDR 35, DEPTH < 8’",5,"LF",null,null,0,0]
[null,"02510-C7-00080","Sanitary Sewer - 10\" PVC, SDR 35,  8’ ≤ DEPTH < 14'",5,"LF",null,null,{"$f":"(D408*F408)*0.9","v":0},{"$f":"(D408*G408)*0.1","v":0}]
[null,"02510-C7-00090","Sanitary Sewer - 10\" PVC, SDR 26, DEPTH ≥ 14'",5,"LF",null,null,0,0]
[null,"02510-C7-00130","Sanitary Sewer - 12\" PVC, SDR 35, DEPTH< 8’",5,"LF",null,null,0,0]
[null,"02510-C7-00140","Sanitary Sewer - 12\" PVC, SDR 35, 8’ ≤ DEPTH < 14'",5,"LF",null,null,0,0]
[null,"02510-C7-00150","Sanitary Sewer - 12\" PVC, SDR 26,  DEPTH ≥ 14'",5,"LF",null,null,0,0]
[null,"02510-C7-00040","Sanitary Sewer- 8\"DIP CLASS 52, DEPTH < 8'",5,"LF",null,null,0,0]
[null,"02510-C7-00050","Sanitary Sewer- 8\"DIP CLASS 52, 8'≤ DEPTH < 15'",5,"LF",null,null,0,0]
[null,"02510-C7-00060","Sanitary Sewer- 8\"DIP CLASS 52, DEPTH < 15'",5,"LF",null,null,0,0]
[null,"02510-C7-00100","Sanitary Sewer- 10\"DIP CLASS 52, DEPTH < 8'",5,"LF",null,null,0,0]
[null,"02510-C7-00110","Sanitary Sewer- 10\"DIP CLASS 52, 8'≤ DEPTH < 15'",5,"LF",null,null,0,0]
[null,"02510-C7-00120","Sanitary Sewer- 10\"DIP CLASS 52, DEPTH< 15'",5,"LF",null,null,0,0]
[null,"02510-C7-00160","Sanitary Sewer- 12\"DIP CLASS 52, DEPTH <  8'",5,"LF",null,null,0,0]
[null,"02510-C7-00170","Sanitary Sewer- 12\"DIP CLASS 52, 8'≤ DEPTH < 15'",5,"LF",null,null,0,0]
[null,"02510-C7-00180","Sanitary Sewer- 12\"DIP CLASS 52, DEPTH < 15'",5,"LF",null,null,0,0]
[null,"02510-C7-00200","Manhole - Precast Concrete, 4' ID, DEPTH ≤ 8'",5,"EA",null,null,0,0]
[null,"02510-C7-00210","Manhole-Precast Concrete 4' I.D. DEPTH > 8', PER ADDITIONAL VF OVER 8'",20,"VF",null,null,0,0]
[null,"02510-C7-00220","Manhole-Precast Concrete 5' I.D. DEPTH ≤ 8'",5,"EA",null,null,0,0]
[null,"02510-C7-00230","Manhole-Precast Concrete 5' I.D. DEPTH >8', PER ADDITIONAL VF OVER 8'",20,"VF",null,null,0,0]
[null,"02510-C7-00240","Manhole-Construct Over Existing Sewer, Arlington County DRAWING S-2.2 (PAYMENT SHALL BE FOR DOGHOUSE BASE AND REMAINDER OF MANHOLE SHALL BE PAID UNDER VF PRICES FOR MANHOLES)",5,"EA",null,null,0,0]
[null,"02510-C7-00760","Sanitary Sewer Drop Connection, All sizes, (Arlington County Detail S-2.3)",5,"VF",null,null,0,0]
[null,"02510-C7-00250","Abandon Existing Sanitary Manhole",5,"EA",null,null,0,0]
[null,"02510-C7-00270","Sanitary Sewer House Laterals(IN ACCORDANCE WITH Arlington County CONSTRUCTION STANDARDS AND SPECIFICATIONS SECTION 02510)",100,"LF",null,null,0,0]
[]
[{"$nulls":5},"C7 SUBTOTAL",null,{"$f":"SUM(H404:H430)","v":0},{"$f":"SUM(I404:I430)","v":0}]
[null,"C11","LANDSCAPE AND HARDSCAPE RESTORATION WORK"]
["02800-C11-00091","329100-C11-00010","Imported Topsoil",200,"CY",null,null,{"$f":"(D433*F433)*0.9","v":0},{"$f":"(D433*G433)*0.1","v":0}]
["02200-C11-00010","329100-C11-00020","Planting Soil Backfill, Mixture of 3/4 Existing Soil and 1/4 Organic Material (per Arlington County DPR Specification)",50,"CY",null,null,{"$f":"(D434*F434)*0.9","v":0},{"$f":"(D434*G434)*0.1","v":0}]
["02800-C11-00020","329100-C11-00030","Planting Soil Backfill, Purchased Mixture (per Arlington County DPR Specification)",50,"CY",null,null,0,0]
["02800-C11-00030","329100-C11-00031","Continuous Soil Panel (per DPR Continuous Soil Panel and Tree Pit Drainage Details)",10,"CY",null,null,0,0]
["02800-C11-00035","329100-C11-SP035","Soil Profile rebuilding",500,"SF",null,null,0,0]
["02801-C11-00040","329100-C11-00040","Shredded hardwood mulch; Aged 6 months minimum - Free of Trash & Debris",100,"CY",null,null,0,0]
["02801-C11-00050","329200-C11-00050","Seed, Mixture of 80% Tall Fescue, 10% Bluegrass, and 10% perennial ryegrass",60,"SY",null,null,0,0]
["02801-C11-00060","329200-C11-00060","Sod, Tall Fescue/Bluegrass Mixture",5,"SY",null,null,0,0]
["02801-C11-00070","329200-C11-00070","Sod, Zoysia",5,"SY",null,null,0,0]
["02801-C11-00080","329300-C11-00080","Hedge Row - Remove, Reset, and Mulch (Includes All Labor and Materials)",5,"LF",null,null,0,0]
["02800-C11-00500","02100-C11-00500","Tree/Stump Removal - Class A. Remove and Dispose, 6\" DBH to 12\" DBH (Diameter at Breast Height)",5,"EA",null,null,0,0]
["02800-C11-00501","02100-C11-00501","Tree/Stump Removal - Class B. Remove and Dispose, over 12\" DBH to 18\" DBH (Diameter at Breast Height)",5,"EA",null,null,0,0]
["02800-C11-00502","02100-C11-00502","Tree/Stump Removal - Class C. Remove and Dispose, over 18\" DBH to 24\" DBH (Diameter at Breast Height)",5,"EA",null,null,0,0]
["02800-C11-00503","02100-C11-00503","Tree/Stump Removal - Class D. Remove and Dispose, over 24\" DBH to 30\" DBH (Diameter at Breast Height)",5,"EA",null,null,0,0]
["02800-C11-00504","02100-C11-00504","Tree/Stump Removal - Class E. Remove and Dispose, over 30\" DBH to 36\" DBH (Diameter at Breast Height)",5,"EA",null,null,0,0]
["02800-C11-00600","02100-C11-00505","Tree/Stump Removal - Class F. Remove and Dispose, over 36\" DBH to 42\" DBH (Diameter at Breast Height)",5,"EA",null,null,0,0]
["02800-C11-00601","02100-C11-00506","Tree/Stump Removal - Class G. Remove and Dispose, over 42\" DBH to 48\" DBH (Diameter at Breast Height)",5,"EA",null,null,0,0]
["02800-C11-00602","02100-C11-00507","Tree/Stump Removal - Class H. Remove and Dispose, over 48\" DBH (Diameter at Breast Height)",5,"EA",null,null,0,0]
["02800-C11-00606","329300-C11-00600","Trees, Deciduous - 0.75 to 1.0\" caliper",5,"EA",null,null,0,0]
["02800-C11-00607","329300-C11-00601","Trees, Deciduous - 1.0 to 1.5\" caliper",10,"EA",null,null,0,0]
["02800-C11-00608","329300-C11-00602","Trees, Deciduous - 1.5 to 2.0\" caliper",5,"EA",null,null,0,0]
["02800-C11-00609","329300-C11-00603","Trees, Deciduous - 2.0 to 2.5\" caliper",5,"EA",null,null,0,0]
["02800-C11-00610","329300-C11-00604","Trees, Deciduous - 2.5 to 3.0\" caliper",5,"EA",null,null,0,0]
["02800-C11-00611","329300-C11-00606","Trees, Deciduous -4'-5' in height",5,"EA",null,null,0,0]
["02800-C11-00614","329300-C11-00607","Trees, Deciduous -5'-6' in height",5,"EA",null,null,0,0]
["02800-C11-00650","329300-C11-00608","Trees, Deciduous -6'-8' in height",5,"EA",null,null,0,0]
["02800-C11-00651","329300-C11-00609","Trees, Deciduous -8'-10' in height",5,"EA",null,null,0,0]
["02800-C11-01000","329300-C11-00610","Trees, Evergreen - 5.0 to 6.0' in height",10,"EA",null,null,0,0]
["02800-C11-01010","329300-C11-00611","Trees, Evergreen - 6.0 to 7.0' in height",5,"EA",null,null,0,0]
["02800-C11-01020","329300-C11-00614","Trees, Evergreen - 7.0' to 8.0' in height",5,"EA",null,null,0,0]
["02800-C11-01080","329300-C11-00612","Trees, Evergreen - 8.0 to 10.0' in height",5,"EA",null,null,0,0]
["02800-C11-01090","329300-C11-00613","Trees, Evergreen - 10.0 to 12.0' in height",5,"EA",null,null,0,0]
["02800-C11-01100","329300-C11-00650","Bare root Tree or Shrub Seedling 12\"-24\"",100,"EA",null,null,0,0]
["02800-C11-01110","329300-C11-00651","Bare root Tree or Shrub Seedling greater than 24\"",100,"EA",null,null,0,0]
["02800-C11-00081","329300-C11-01000","Herbaceous plants (4\" Deep plug Minimum)",250,"EA",null,null,0,0]
["311300-C11-00082","329300-C11-01010","Herbaceous Plant (Quart)",1000,"EA",null,null,0,0]
["311300-C11-00085","329300-C11-01020","Herbaceous Plant (#1 Container)",1000,"EA",null,null,0,0]
["311300-C11-00084","329300-C11-01080","Shrub (#1 Container)- Container or B&B",5,"EA",null,null,0,0]
["02800-C11-00100","329300-C11-01090","Shrub (#2 Container)- Container or B&B",25,"EA",null,null,0,0]
["02800-C11-00111","329300-C11-01100","Shrub (#3 Container)- Container or B&B",125,"EA",null,null,0,0]
["02800-C11-00110","329300-C11-01110","Shrub (#5 Container)- Container or B&B",50,"EA",null,null,0,0]
[null,"329300-C11-01120","Shrub 12\"-18\" Tall - Container or B&B",5,"EA"]
["02800-C11-00120","329300-C11-01130","Shrub 18\"-24\" Tall - Container or B&B",10,"EA",null,null,0,0]
["13120-C11-00130","329300-C11-01140","Shrub 24\"-36\" Tall - Container or B&B",5,"EA",null,null,0,0]
["05500-C11-00140","329300-C11-00081","Tree Staking (Arlington County Park and Recreation, 329300.6 and 329300.7)",5,"EA",null,null,0,0]
["05500-C11-00150","311300-C11-00082","Tree/Shrub Pruning",5,"EA",null,null,0,0]
["05500-C11-00160","311300-C11-00085","Root Pad ( DPR Detail 311100.4)",5,"EA",null,null,0,0]
["05500-C11-00170","311300-C11-00084","Root Protection Matting",5,"SF",null,null,0,0]
["02800-C11-00180","02612-C11-00100","Brick Pavers, Including Concrete Base (Arlington County Detail R-2.1)",5,"SY",null,null,0,0]
["02800-C11-00190","02780-C11-00101","Permeable Unit Pavers",5,"SY",null,null,0,0]
["02800-C11-00200","02612-C11-00110","Brick Pavers, Remove and Reset (Arlington County Detail R-2.1)",5,"SY",null,null,0,0]
["02800-C11-00210","02611-C11-00120","Flagstone Walkway, Remove & Reset or Replace to Match Existing",5,"SY",null,null,0,0]
["02800-C11-00220","13120-C11-00130","Bollards",5,"EA",null,null,0,0]
["02800-C11-00230","05500-C11-00140","Handrail (Arlington County Detail R-3.1)",5,"LF",null,null,0,0]
["02800-C11-00240","05500-C11-00150","Handrail - Ornamental (Arlington County Detail R-3.2)",5,"LF",null,null,0,0]
["02800-C11-00250","05500-C11-00160","Handrail - Trail Railing (Arlington County Detail R-3.3)",5,"LF",null,null,0,0]
["02800-C11-00260","05500-C11-00170","Handrail (Any Type or Material), Remove and Dispose ",5,"LF",null,null,0,0]
["02800-C11-00270","01000-C11-00180","Wooden or Vinyl Fence (Typical Privacy, Picket, or Similar), Remove & Replace, Height Up to 6' ",5,"LF",null,null,0,0]
["02800-C11-00280","01000-C11-00190","Wooden or Vinyl Fence (Typical Privacy, Picket, or Similar), Remove & Replace, Height Greater Than 6' Up to 8'",5,"LF",null,null,0,0]
["02800-C11-00290","01000-C11-00200","Chain Link Fence, Height Less Than or Equal to 6'",5,"LF",null,null,0,0]
["02800-C11-00300","01000-C11-00210","Chain Link Fence, Height Greater Than 6' Up to 8'",5,"LF",null,null,0,0]
["02800-C11-00310","01000-C11-00220","Chain Link Fence - Relocate, Height Less Than or Equal to 6'",5,"LF",null,null,0,0]
["02800-C11-00320","01000-C11-00230","Chain Link Fence - Relocate, Height Greater Than 6' Up to 8'",5,"LF",null,null,0,0]
["02800-C11-00330","01000-C11-00240","Chain Link Fence - Remove & Dispose, Height Less Than or equal to 6'",5,"LF",null,null,0,0]
["02800-C11-00340","01000-C11-00250","Chain Link Fence - Remove & Dispose, Height Greater Than 6' Up to 8'",5,"LF",null,null,0,0]
["02800-C11-00350","01000-C11-00260","Fence and Posts (Any Size or Material), Remove & Dispose, only when not included in other pay items",5,"LF",null,null,0,0]
["02800-C11-00360","04200-C11-00270","Landscape/Retaining Wall, Excluding Foundation (Segmental Non-Reinforced Interlocking Concrete Wall), Height Less Than 3' Exposed Face (Versa-Lok, or County Approved Alternate System)",5,"SF",null,null,{"$f":"(D499*F499)*0.9","v":0},{"$f":"(D499*G499)*0.1","v":0}]
["02800-C11-00370","04200-C11-00280","Landscape/Retaining Wall (Block, Brick, Segmental, or Similar), Height Less Than or Equal to 3' Exposed Face, Remove and Dispose (Foundation Removal Paid Separately under Rock Excavation)",5,"SF",null,null,0,0]
["02800-C11-00380","04200-C11-00290","Landscape/Retaining Wall (Block, Brick, Segmental, or Similar), Height Greater Than 3' Exposed Face, Remove and Dispose (Foundation Removal Paid Separately under Rock Excavation)",5,"SF",null,null,0,0]
["02800-C11-00390","04300-C11-00300","Landscape Wall, Repoint and Repair",5,"SY",null,null,0,0]
[null,"04300-C11-00310","Retaining Wall - Mortar Rubble (Arlington County Detail R-4.0, including all materials as shown in drawing)",5,"CF",null,null,{"$f":"(D503*F503)*0.9","v":0},{"$f":"(D503*G503)*0.1","v":0}]
[null,"04300-C11-00320","Retaining Wall - Mortar Rubble (Arlington County Detail R-4.1, including all materials as shown in drawing except Concrete Base)",5,"CF",null,null,0,0]
[null,"04300-C11-00330","Retaining Wall - Mortar Rubble (Arlington County Detail R-4.2, including all materials as shown in drawing)",5,"CF",null,null,0,0]
[null,"04300-C11-00340","Retaining Wall - Mortar Rubble (Arlington County Detail R-4.3, including all materials as shown in drawing except Concrete Base)",5,"CF",null,null,0,0]
[null,"04300-C11-00350","Retaining Wall - Concrete Base (Arlington County Detail R-4.1 or R-4.3 Only)",5,"CF",null,null,0,0]
[null,"04300-C11-00360","Retaining Wall - Concrete Gravity (VDOT RW-2)",5,"CF",null,null,0,0]
[null,"04300-C11-00370","Retaining Wall - Concrete Gravity (VDOT RW-3)",5,"CF",null,null,0,0]
[null,"04300-C11-00380","Retaining Wall - Rustication Treatment, Brick or Vertical Groove (VDOT RW-2, or VDOT RW-3)",5,"SY",null,null,0,0]
[null,"04300-C11-00390","Retaining Wall, Repoint and Repair",5,"SY",null,null,0,0]
[]
[{"$nulls":5},"C11-SUBTOTAL",null,{"$f":"SUM(H433:H512)","v":0},{"$f":"SUM(I433:I512)","v":0}]
[null,"C13","EROSION AND SEDIMENT CONTROL WORK"]
["01500-C13-00002","01500-C13-00002","Mulch/Mat Construction Entrance",5,"EA",null,null,{"$f":"(D515*F515)*0.9","v":0},{"$f":"(D515*G515)*0.1","v":0}]
["01500-C13-00010","01500-C13-00005","Gravel construction entrance, including wash rack (per Virginia Erosion & Sediment Control Handbook Standard & Specification 3.02)",5,"EA",null,null,{"$f":"(D516*F516)*0.9","v":0},{"$f":"(D516*G516)*0.1","v":0}]
["01500-C13-00020","01500-C13-00010","Silt Fence, with Wire Support (Virginia Erosion & Sediment Control Handbook Standard & Specification 3.05)",500,"LF",null,null,0,0]
["01500-C13-00030","01500-C13-00020","Silt Fence, without Wire Support (Virginia Erosion & Sediment Control Handbook Standard & Specification 3.05)",200,"LF",null,null,0,0]
["01500-C13-00040","01500-C13-00030","Storm Drain Inlet Protection, Silt Fence Drop Inlet Application (per Virginia Erosion & Sediment Control Handbook Standard & Specification 3.07)",20,"EA",null,null,0,0]
["01500-C13-00050","01500-C13-00040","Storm Drain Inlet Protection, Gravel & Wire Mesh Drop Inlet Application (per Virginia Erosion & Sediment Control Handbook Standard & Specification 3.07)",5,"EA",null,null,0,0]
["01500-C13-00060","01500-C13-00050","Storm Drain Inlet Protection, Block & Gravel Drop Inlet Application (per Virginia Erosion & Sediment Control Handbook Standard & Specification 3.07)",1,"EA",null,null,0,0]
["01500-C13-00070","01500-C13-00060","Storm Drain Inlet Protection, Gravel Curb Inlet Application (per Virginia Erosion & Sediment Control Handbook Standard & Specification 3.07)",1,"EA",null,null,0,0]
["01500-C13-00080","01500-C13-00070","Storm Drain Inlet Protection, Block & Gravel Curb Inlet Application (per Virginia Erosion & Sediment Control Handbook Standard & Specification 3.07)",1,"EA",null,null,0,0]
["01500-C13-00090","01500-C13-00080","Culvert Inlet Protection, Silt Fence Application (per Virginia Erosion & Sediment Control Handbook Standard & Specification 3.08)",1,"EA",null,null,0,0]
["01500-C13-00100","01500-C13-00090","Culvert Inlet Protection, Stone Combination Application (per Virginia Erosion & Sediment Control Handbook Standard & Specification 3.08)",1,"EA",null,null,0,0]
["01500-C13-00110","01500-C13-00100","Install and Remove Temporary Diversion Dike (per Virginia Erosion & Sediment Control Handbook Standard & Specification 3.09)",5,"LF",null,null,0,0]
["01500-C13-00101","01500-C13-00101","Install and Remove Temporary Fill Diversion (per Virginia Erosion & Sediment Control Handbook Standard & Specification 3.10)",5,"LF",null,null,0,0]
["01500-C13-00120","01500-C13-00102","Diversion (per Virginia Erosion & Sediment Control Handbook Standard & Specification 3.12)",1,"LF",null,null,0,0]
["01500-C13-00130","01500-C13-00103","Install and Remove Temporary sediment trap (per Virginia Erosion & Sediment Control Handbook Standard & Specification 3.13)",1,"CY",null,null,0,0]
["01500-C13-00140","01500-C13-00104","Temporary sediment basin (per Virginia Erosion & Sediment Control Handbook Standard & Specification 3.14) and sediment basin removal and fill upon completion",1,"CY",null,null,0,0]
["01500-C13-00150","01500-C13-00110","Rock Check Dam (per Virginia Erosion & Sediment Control Handbook Standard & Specification 3.20)",1,"EA",null,null,0,0]
["01500-C13-00160","01500-C13-00120","Dewatering Structure (per Virginia Erosion & Sediment Control Handbook Standard & Specification 3.26)",1,"EA",null,null,0,0]
["01500-C13-00300","01500-C13-00130","6' Chain Link Tree Protection Fence (per Arlington County DPR Standard 311300.1)",5,"LF",null,null,0,0]
["01500-C13-00320","01500-C13-00140","4' Chain Link Tree Protection Fence (per Arlington County DPR Standard 311300.2)",400,"LF",null,null,0,0]
["01500-C13-00330","01500-C13-00150","Root Pruning (per Arlington County DPR Standard 311300.5)",100,"LF",null,null,0,0]
["01500-C13-00340","01500-C13-00151","Excavation using Supersonic Air Tool (SSAT) such as AirSpade",500,"SF",null,null,0,0]
["01500-C13-00350","01500-C13-00160","Tree Protection, Fencing and Amoring Applications (per Virginia Erosion & Sediment Control Handbook Standard & Specification 3.38)",200,"LF",null,null,0,0]
["01500-C13-00360","01500-C13-00300","Stormwater Channel excavation grass lined - seeded (per Virginia Erosion & Sediment Control Handbook Standard & Specification 3.17)",5,"SY",null,null,0,0]
["01500-C13-00370","01500-C13-00330","Stormwater Channel grass line seeded Rip Rap 12\", non grouted (per Virginia Erosion & Sediment Control Handbook Standard & Specification 3.17)",5,"SY",null,null,0,0]
["01500-C13-00380","01500-C13-00340","Stormwater Channel grass line seeded Rip Rap 18\", non grouted (per Virginia Erosion & Sediment Control Handbook Standard & Specification 3.17)",5,"SY",null,null,0,0]
["01500-C13-00390","01500-C13-00350","Stormwater Channel grass line sodded (per Virginia Erosion & Sediment Control Handbook Standard & Specification 3.17)",5,"SY",null,null,0,0]
["01500-C13-00400","01500-C13-00360","Stormwater Channel grass line sodded Rip Rap 12\", non grouted (per Virginia Erosion & Sediment Control Handbook Standard & Specification 3.17)",5,"SY",null,null,0,0]
["01500-C13-00410","01500-C13-00370","Stormwater Channel grass line sodded Rip Rap 18\", non grouted (per Virginia Erosion & Sediment Control Handbook Standard & Specification 3.17)",5,"SY",null,null,0,0]
["01500-C13-00420","01500-C13-00380","Stormwater Channel excavation Rip Rap 12\" non grouted (per Virginia Erosion & Sediment Control Handbook Standard & Specification 3.17)",5,"SY",null,null,0,0]
["01500-C13-00430","01500-C13-00390","Stormwater Channel excavation Rip Rap 18\" non grouted (per Virginia Erosion & Sediment Control Handbook Standard & Specification 3.17)",5,"SY",null,null,0,0]
["01500-C13-00440","01500-C13-00400","Outlet protection concrete 4\"(per Virginia Erosion & Sediment Control Handbook Standard & Specification 3.18)",5,"SY",null,null,0,0]
["01500-C13-00450","01500-C13-00410","Outlet protection grouted rip rap, 18\" (per Virginia Erosion & Sediment Control Handbook Standard & Specification 3.18)",5,"SY",null,null,0,0]
["01500-C13-00460","01500-C13-00420","Outlet protection non-grouted rip rap, 18\" (per Virginia Erosion & Sediment Control Handbook Standard & Specification 3.18)",5,"SY",null,null,0,0]
["01500-C13-00470","01500-C13-00430","Biologs with live stakes streambank protection (per Virginia Erosion & Sediment Control Handbook Standard & Specification 3.22)",15,"LF",null,null,0,0]
["01500-C13-00480","01500-C13-00440","Gabions streambank protection (per Virginia Erosion & Sediment Control Handbook Standard & Specification 3.23)",5,"CY",null,null,0,0]
["01500-C13-00500","01500-C13-00450","Streambank protection - Grouted rip rap 18\" (per Virginia Erosion & Sediment Control Handbook Standard & Specification 3.23)",5,"SY",null,null,0,0]
["01500-C13-00510","01500-C13-00460","Streambank protection - Non-Grouted rip rap 18\" (per Virginia Erosion & Sediment Control Handbook Standard & Specification 3.23)",10,"SY",null,null,0,0]
["01500-C13-00520","01500-C13-00470","Imbricated Riprap (Per DEQ Virginia Stream restoration and stabilization best management pracitices guide, Chapter 4, Section 1, Practice 1.3, Detail 1.3)",10,"CY/TON",null,null,0,0]
["01500-C13-00530","01500-C13-00480","Sandbag/Stone Diversion (Per DEQ Virginia Stream restoration and stabilization best management pracitices guide, Chapter 4, Section 5, Practice 5.2, Detail 5.2)",5,"EA",null,null,0,0]
["01500-C13-00540","01500-C13-00500","Permanent Soil stabilization mat - slope installation, (VDOT standard EC-3)",5,"SY",null,null,0,0]
["01500-C13-00550","01500-C13-00510","Permanent Soil stabilization mat - culvert outlet protection installation (VDOT standard EC-3)",5,"SY",null,null,0,0]
["01500-C13-00005","01500-C13-00520","Permanent Soil stabilization mat - ditch installation, (VDOT standard EC-3)",5,"SY",null,null,0,0]
[null,"01500-C13-00530","Temporary Soil stabilization mat - slope/ditch installation (VDOT standard EC-2)",5,"SY",null,null,{"$f":"(D558*F558)*0.9","v":0},{"$f":"(D558*G558)*0.1","v":0}]
[null,"01500-C13-00540","Temporary jute mesh protective covering (VDOT standard EC-2)",5,"SY",null,null,0,0]
[null,"01500-C13-00550","Straw mulch with tack",5,"SY",null,null,0,0]
[]
[{"$nulls":5},"C13 SUBTOTAL",null,{"$f":"SUM(H515:H561)","v":0},{"$f":"SUM(I515:I561)","v":0}]
[null,"C15","UNLISTED WORK"]
["01000-C15-00010","01000-C15-00010","Foreman With Pick-up Truck",100,"Hourly",null,null,{"$f":"(D564*F564)*0.9","v":0},{"$f":"(D564*G564)*0.1","v":0}]
["01000-C15-00020","01000-C15-00020","Backhoe With Operator",50,"Hourly",null,null,{"$f":"(D565*F565)*0.9","v":0},{"$f":"(D565*G565)*0.1","v":0}]
["01000-C15-00030","01000-C15-00030","Loader With Operator",50,"Hourly",null,null,0,0]
["01000-C15-00040","01000-C15-00040","Tandem/Tri-Axle Dump Truck With Driver",10,"Hourly",null,null,0,0]
["01000-C15-00050","01000-C15-00050","Single Axle Dump Truck With Driver",10,"Hourly",null,null,0,0]
["01000-C15-00060","01000-C15-00060","Labor - Pipe Layer",50,"Hourly",null,null,0,0]
["01000-C15-00070","01000-C15-00070","Labor - Concrete Finisher",100,"Hourly",null,null,0,0]
["01000-C15-00080","01000-C15-00080","Labor - Manhole Builder",50,"Hourly",null,null,0,0]
["01000-C15-00090","01000-C15-00090","Labor - Skilled",50,"Hourly",null,null,0,0]
["01000-C15-00100","01000-C15-00100","Labor - Unskilled",500,"Hourly",null,null,0,0]
["01000-C15-00110","01000-C15-00110","Flagman",50,"Hourly",null,null,0,0]
["01000-C15-00120","01000-C15-00120","Misc. Equipment Operator",10,"Hourly",null,null,0,0]
["01000-C15-00130","01000-C15-00130","Rubber Tire Loader With Operator",5,"Hourly",null,null,0,0]
["01000-C15-00140","01000-C15-00140","Skid Steer Loader With Operator",10,"Hourly",null,null,0,0]
["01000-C15-00150","01000-C15-00150","Track Excavator With Operator",10,"Hourly",null,null,0,0]
["01000-C15-00160","01000-C15-00160","Air Compressor With Tools",5,"Hourly",null,null,0,0]
["01000-C15-00170","01000-C15-00170","Tool Truck or Trailer with Tools Incidental to work",5,"Hourly",null,null,0,0]
["01000-C15-00180","01000-C15-00180","Trench Compactor",50,"Hourly",null,null,0,0]
["01000-C15-00190","01000-C15-00190","Pavement Breaker",50,"Hourly",null,null,0,0]
["01000-C15-00200","01000-C15-00200","Welding (Includes All Labor And Equipment)",10,"Hourly",null,null,0,0]
["01000-C15-00210","01000-C15-00210","Lighting With Generator",10,"Hourly",null,null,0,0]
["01000-C15-00220","01000-C15-00220","Roadway Steel Plates - EA",5,"DAY",null,null,0,0]
["01000-C15-00230","01000-C15-00230","Excavation Trench Box - EA",5,"DAY",null,null,0,0]
["01000-C15-00240","01000-C15-00240","Electronic Arrow Board",10,"Hourly",null,null,0,0]
["01000-C15-00250","01000-C15-00250","Work Zone Set-Up - Includes Signs, Channelizers And Cones",5,"DAY",null,null,0,0]
["01000-C15-00260","01000-C15-00260","Boom Truck with Driver/Operator",10,"Hourly",null,null,0,0]
["01000-C15-00270","01000-C15-00270","Tractor Trailer with Driver",10,"Hourly",null,null,0,0]
["01000-C15-00280","01000-C15-00280","4\" or Greater Dewatering Pump",5,"DAY",null,null,0,0]
["01000-C15-00290","01000-C15-00290","Tapping Machine",20,"Hourly",null,null,0,0]
["01000-C15-00300","01000-C15-00300","Jack Hammer",20,"Hourly",null,null,0,0]
["01000-C15-00330","01000-C15-00310","Pipe Layer",5,"Hourly",null,null,0,0]
["01000-C15-00340","01000-C15-00320","Pipe Layer Helper",5,"Hourly",null,null,0,0]
["01000-C15-00350","01000-C15-00330","1st Class Lineman",10,"Hourly",null,null,0,0]
["01000-C15-00360","01000-C15-00340","3rd Class Lineman",20,"Hourly",null,null,0,0]
["01000-C15-00370","01000-C15-00350","Utility Truck w/ Tools",5,"Hourly",null,null,0,0]
["01000-C15-00390","01000-C15-00360","Pole Truck w/ Operator",5,"Hourly",null,null,0,0]
["01000-C15-00400","01000-C15-00370","Aerial Lift Truck w/ Operator",5,"Hourly",null,null,0,0]
[null,"01000-C15-00380","Air Compressor w/Air Tools",5,"Hourly",null,null,{"$f":"(D601*F601)*0.9","v":0},{"$f":"(D601*G601)*0.1","v":0}]
[null,"01000-C15-00390","Pole Trailer",5,"Hourly",null,null,0,0]
[null,"01000-C15-00400","Cable Trailer",5,"Hourly",null,null,0,0]
[]
[{"$nulls":5},"C15 SUBTOTAL",null,{"$f":"SUM(H564:H604)","v":0},{"$f":"SUM(I564:I604)","v":0}]
[null,"C17","STORMWATER WORK"]
["ACSWM-C17-00009","ACSWM-C17-00009","Aggregate, Double Washed VDOT #8 (Uncompacted in Place, Choking Layer)",50,"CY",null,null,{"$f":"(D607*F607)*0.9","v":0},{"$f":"(D607*G607)*0.1","v":0}]
["ACSWM-C17-00020","ACSWM-C17-00020","Aggregate, Double Washed VDOT #57-A (Uncompacted in Place)",200,"CY",null,null,{"$f":"(D608*F608)*0.9","v":0},{"$f":"(D608*G608)*0.1","v":0}]
["ACSWM-C17-00030","ACSWM-C17-00030","Inlet Protection/ Energy Dissipaton (3\"-6\" Rounded River Rock)",20,"CY",null,null,0,0]
["ACSWM-C17-00050","ACSWM-C17-00050","6\" Perforated Pipe, PVC ( Schedule 40 or SDR 35, perforated 3/8\" holes at 6\" on center, Maximum of 3 rows of perforations) in Place up to 6' Deep)",300,"LF",null,null,0,0]
["ACSWM-C17-00110","ACSWM-C17-00110","Bioretention Filter Media",500,"CY",null,null,0,0]
["ACSWM-C17-00200","ACSWM-C17-00111","Biochar Enhanced Filter Media",100,"CY",null,null,0,0]
["ACSWM-C17-00210","ACSWM-C17-SP200","15\" Dia. Riser Structure with Dome Type Grate - See ITB Attachment",5,"EA",null,null,0,0]
["ACSWM-C17-00220","ACSWM-C17-SP210","18\" Dia. Riser Structure with Dome Type Grate - See ITB Attachment",5,"EA",null,null,0,0]
["ACSWM-C17-00230","ACSWM-C17-SP220","24\" Dia. Riser Structure with Dome Type Grate - See ITB Attachment",5,"EA",null,null,0,0]
["ACSWM-C17-00300","ACSWM-C17-SP230","30\" Dia. Riser Structure with Dome Type Grate - See ITB Attachment",5,"EA",null,null,0,0]
["ACSWM-C17-00350","ACSWM-C17-SP300","PVC Cleanout with Cap - See ITB Attachment",20,"EA",null,null,0,0]
["ACSWM-C17-00410","ACSWM-C17-00350","30mil HDPE or PVC Impermeable liner installed in place",100,"SY",null,null,0,0]
["ACSWM-C17-00420","ACSWM-C17-00410","4\" Permeable Concrete in place",5,"CY",null,null,0,0]
["ACSWM-C17-00430","ACSWM-C17-00420","6\" Permeable Concrete in place",200,"CY",null,null,0,0]
["ACSWM-C17-00600","ACSWM-C17-00430","8\" Permeable Concrete in place",200,"CY",null,null,0,0]
["ACSWM-C17-00510","ACSWM-C17-00500","Thickened Concrete Curb & Gutter - See ITB Attachment",100,"LF",null,null,0,0]
["ACSWM-C17-00520","ACSWM-C17-SP510","Edge Wall with Raised Curb - See ITB Attachment",50,"CY",null,null,0,0]
["ACSWM-C17-00530","ACSWM-C17-SP520","Trench Drain and Grate - See ITB Attachment",15,"LF",null,null,0,0]
["ACSWM-C17-00610","ACSWM-C17-00530","Shallow inlet Frame, Grate, 6\" curb box- Neenah Foundary R-3165 or approved equal",5,"EA",null,null,0,0]
["ACSWM-C17-00620"]
[{"$nulls":5},"C17 SUBTOTAL",null,{"$f":"SUM(H607:H626)","v":{"v":0,"d":"$0.00"}},{"$f":"SUM(I607:I626)","v":{"v":0,"d":"$0.00"}}]
[null,"PCT","PERCENTAGE LINE ITEMS"]
[null,"01000-C16-00010","Maintenance of Traffic (MOT)",{"v":0.02,"d":"2%"},"%",{"$f":"SUMIF(F1:F627,\"***SUBTOTAL\",H1:H627)","v":{"v":0,"d":"0.00"}},{"$f":"SUMIF(F1:F627,\"***SUBTOTAL\",I1:I627)","v":{"v":0,"d":"0.00"}},{"$f":"D629*F629","v":0},{"$f":"D629*G629","v":0}]
[null,"01000-C16-00020","Re-Mobilization",{"v":0.05,"d":"5%"},"%",{"$f":"SUMIF(F2:F627,\"***SUBTOTAL\",H2:H627)","v":{"v":0,"d":"0.00"}},{"$f":"SUMIF(F2:F627,\"***SUBTOTAL\",I2:I627)","v":{"v":0,"d":"0.00"}},{"$f":"D630*F630","v":0},{"$f":"D630*G630","v":0}]
[null,"01000-C16-00030","Mobilization and De-Mobilization",{"v":0.05,"d":"5%"},"%",{"$f":"SUMIF(F3:F627,\"***SUBTOTAL\",H3:H627)","v":{"v":0,"d":"0.00"}},{"$f":"SUMIF(F3:F627,\"***SUBTOTAL\",I3:I627)","v":{"v":0,"d":"0.00"}},0,0]
[null,"01500-SA-00200","SWPPP Administration",{"v":0.02,"d":"2%"},"%",{"$f":"SUMIF(F4:F628,\"***SUBTOTAL\",H4:H628)","v":{"v":0,"d":"0.00"}},{"$f":"SUMIF(F4:F628,\"***SUBTOTAL\",I4:I628)","v":{"v":0,"d":"0.00"}},{"$f":"D632*F632","v":0},{"$f":"D632*G632","v":0}]
[]
[]
[{"$nulls":5},"PCT SUBTOTAL",null,{"$f":"SUM(H629:H633)","v":0},{"$f":"SUM(I629:I633)","v":0}]
[]
[{"$nulls":5},"GRAND TOTAL",null,{"$f":"SUMIF(F:F,\"***SUBTOTAL\",H:H)","v":0},{"$f":"SUMIF(F:F,\"***SUBTOTAL\",I:I)","v":0}]